Effective Date,Department,Supplier Name,Payment Date,Amount **,Purpose of Spend,Merchant Category,Card Transaction
Statement 18/06/2016 - 18/07/2016,Adults and Communities,Amazon Svcs Europe SAR,22/06/2016,1.94,Books - General,Book Stores,GPC
Statement 18/06/2016 - 18/07/2016,Adults and Communities,Amazon UK Marketplace,17/06/2016,6.73,Books - General,Miscellaneous and Specialty Retail Stores,GPC
Statement 18/06/2016 - 18/07/2016,Adults and Communities,Amazon UK Marketplace,30/06/2016,9.00,Books - General,Book Stores,GPC
Statement 18/06/2016 - 18/07/2016,Adults and Communities,Amazon UK Marketplace,04/07/2016,17.80,Books - General,Book Stores,GPC
Statement 18/06/2016 - 18/07/2016,Adults and Communities,Amazon UK Marketplace,13/07/2016,69.90,Furniture - General,Book Stores,GPC
Statement 18/06/2016 - 18/07/2016,Adults and Communities,Amazon UK Marketplace,01/07/2016,3.23,General Equipment - General,Miscellaneous and Specialty Retail Stores,GPC
Statement 18/06/2016 - 18/07/2016,Adults and Communities,Amazon UK Marketplace,03/07/2016,2.99,General Equipment - General,Miscellaneous and Specialty Retail Stores,GPC
Statement 18/06/2016 - 18/07/2016,Adults and Communities,Amazon UK Marketplace,04/07/2016,9.16,General Equipment - General,Miscellaneous and Specialty Retail Stores,GPC
Statement 18/06/2016 - 18/07/2016,Adults and Communities,Amazon UK Marketplace,12/07/2016,48.24,General Equipment - General,Miscellaneous and Specialty Retail Stores,GPC
Statement 18/06/2016 - 18/07/2016,Adults and Communities,Amazon UK Marketplace,15/07/2016,19.96,General Equipment - General,Miscellaneous and Specialty Retail Stores,GPC
Statement 18/06/2016 - 18/07/2016,Adults and Communities,Amazon UK Marketplace,15/07/2016,19.96,General Equipment - General,Miscellaneous and Specialty Retail Stores,GPC
Statement 18/06/2016 - 18/07/2016,Adults and Communities,Amazon UK Marketplace,17/07/2016,39.92,General Equipment - General,Miscellaneous and Specialty Retail Stores,GPC
Statement 18/06/2016 - 18/07/2016,Adults and Communities,Amazon UK Marketplace,14/07/2016,39.95,IT Equipment - General,Miscellaneous and Specialty Retail Stores,GPC
Statement 18/06/2016 - 18/07/2016,Adults and Communities,Amazon UK Marketplace,17/06/2016,18.98,Materials - General,Miscellaneous and Specialty Retail Stores,GPC
Statement 18/06/2016 - 18/07/2016,Adults and Communities,Amazon UK Marketplace,17/06/2016,3.78,Materials - General,Miscellaneous and Specialty Retail Stores,GPC
Statement 18/06/2016 - 18/07/2016,Adults and Communities,Amazon UK Marketplace,17/06/2016,9.14,Materials - General,Miscellaneous and Specialty Retail Stores,GPC
Statement 18/06/2016 - 18/07/2016,Adults and Communities,Amazon UK Marketplace,06/07/2016,15.00,Materials - General,Miscellaneous and Specialty Retail Stores,GPC
Statement 18/06/2016 - 18/07/2016,Adults and Communities,Amazon UK Marketplace,07/07/2016,37.48,Materials - General,Miscellaneous and Specialty Retail Stores,GPC
Statement 18/06/2016 - 18/07/2016,Adults and Communities,Amazon UK Marketplace,13/07/2016,3.49,Materials - General,Miscellaneous and Specialty Retail Stores,GPC
Statement 18/06/2016 - 18/07/2016,Adults and Communities,Amazon UK Marketplace,27/06/2016,43.74,Medical Fees - General,Miscellaneous and Specialty Retail Stores,GPC
Statement 18/06/2016 - 18/07/2016,Adults and Communities,Amazon UK Marketplace,13/07/2016,36.58,Operational Equipment - General,Miscellaneous and Specialty Retail Stores,GPC
Statement 18/06/2016 - 18/07/2016,Adults and Communities,Amazon UK Marketplace,21/06/2016,-10.82,Other Equipment & Materials - General,Miscellaneous and Specialty Retail Stores,GPC
Statement 18/06/2016 - 18/07/2016,Adults and Communities,Amazon UK Marketplace,28/06/2016,8.01,Other Equipment & Materials - General,Miscellaneous and Specialty Retail Stores,GPC
Statement 18/06/2016 - 18/07/2016,Adults and Communities,Amazon UK Marketplace,06/07/2016,36.65,Other Expenditure - General,Miscellaneous and Specialty Retail Stores,GPC
Statement 18/06/2016 - 18/07/2016,Adults and Communities,Amazon UK Marketplace,11/07/2016,20.28,Other Services - General,Miscellaneous and Specialty Retail Stores,GPC
Statement 18/06/2016 - 18/07/2016,Adults and Communities,Amazon UK Marketplace,14/07/2016,34.37,Other Services - General,Miscellaneous and Specialty Retail Stores,GPC
Statement 18/06/2016 - 18/07/2016,Adults and Communities,Amazon UK Marketplace,13/07/2016,8.49,Personal Needs of Clients - General,Miscellaneous and Specialty Retail Stores,GPC
Statement 18/06/2016 - 18/07/2016,Adults and Communities,Amazon UK Marketplace,24/06/2016,3.21,Stationery - General,Miscellaneous and Specialty Retail Stores,GPC
Statement 18/06/2016 - 18/07/2016,Adults and Communities,Amazon UK Marketplace,13/07/2016,16.43,Stationery - General,Miscellaneous and Specialty Retail Stores,GPC
Statement 18/06/2016 - 18/07/2016,Adults and Communities,Amazon UK Marketplace,16/07/2016,38.33,Stationery - General,Miscellaneous and Specialty Retail Stores,GPC
Statement 18/06/2016 - 18/07/2016,Adults and Communities,Amazon UK Retail,07/07/2016,3.85,Books - General,Direct Marketers - Other,GPC
Statement 18/06/2016 - 18/07/2016,Adults and Communities,Amazon UK Retail,08/07/2016,6.99,Books - General,Direct Marketers - Other,GPC
Statement 18/06/2016 - 18/07/2016,Adults and Communities,Amazon UK Retail,14/07/2016,7.49,General Equipment - General,Direct Marketers - Other,GPC
Statement 18/06/2016 - 18/07/2016,Adults and Communities,Amazon UK Retail,16/07/2016,34.76,General Equipment - General,Direct Marketers - Other,GPC
Statement 18/06/2016 - 18/07/2016,Adults and Communities,Amazon UK Retail,13/07/2016,32.99,IT Equipment - Maintenance,Direct Marketers - Other,GPC
Statement 18/06/2016 - 18/07/2016,Adults and Communities,Amazon UK Retail,12/07/2016,30.15,Other Expenditure - General,Direct Marketers - Other,GPC
Statement 18/06/2016 - 18/07/2016,Adults and Communities,Amazon UK Retail,18/06/2016,24.57,Personal Needs of Clients - General,Direct Marketers - Other,GPC
Statement 18/06/2016 - 18/07/2016,Adults and Communities,Amazon UK Retail,02/07/2016,3.06,Postal Services - General,Direct Marketers - Other,GPC
Statement 18/06/2016 - 18/07/2016,Adults and Communities,Amazon UK Retail,14/07/2016,3.96,Postal Services - General,Direct Marketers - Other,GPC
Statement 18/06/2016 - 18/07/2016,Adults and Communities,Amazon UK Retail,17/06/2016,36.19,Stationery - General,Direct Marketers - Other,GPC
Statement 18/06/2016 - 18/07/2016,Adults and Communities,Amazon UK Retail,02/07/2016,15.26,Stationery - General,Direct Marketers - Other,GPC
Statement 18/06/2016 - 18/07/2016,Adults and Communities,Amazon UK Retail,13/07/2016,11.27,Stationery - General,Direct Marketers - Other,GPC
Statement 18/06/2016 - 18/07/2016,Adults and Communities,Amazon UK Retail,15/07/2016,10.00,Stationery - General,Direct Marketers - Other,GPC
Statement 18/06/2016 - 18/07/2016,Adults and Communities,AMAZON UK RETAIL AMAZON.C,07/07/2016,37.67,Books - General,Miscellaneous and Specialty Retail Stores,GPC
Statement 18/06/2016 - 18/07/2016,Adults and Communities,AMAZON UK RETAIL AMAZON.C,22/06/2016,13.00,Materials - General,Miscellaneous and Specialty Retail Stores,GPC
Statement 18/06/2016 - 18/07/2016,Adults and Communities,AMAZON UK RETAIL AMAZON.C,28/06/2016,53.44,Personal Needs of Clients - General,Miscellaneous and Specialty Retail Stores,GPC
Statement 18/06/2016 - 18/07/2016,Adults and Communities,ARGOS LTD,17/06/2016,29.99,Furniture - General,Discount Stores,GPC
Statement 18/06/2016 - 18/07/2016,Adults and Communities,ARGOS LTD,20/06/2016,89.97,Furniture - General,Discount Stores,GPC
Statement 18/06/2016 - 18/07/2016,Adults and Communities,ARGOS LTD,05/07/2016,11.24,Furniture - General,Discount Stores,GPC
Statement 18/06/2016 - 18/07/2016,Adults and Communities,ARGOS LTD,04/07/2016,15.69,Materials - General,Discount Stores,GPC
Statement 18/06/2016 - 18/07/2016,Adults and Communities,ARGOS RETAIL GROUP,07/07/2016,134.44,Materials - General,Discount Stores,GPC
Statement 18/06/2016 - 18/07/2016,Adults and Communities,ARGOS RETAIL GROUP,11/07/2016,83.94,Materials - General,Discount Stores,GPC
Statement 18/06/2016 - 18/07/2016,Adults and Communities,ASDA STORES 4477,06/07/2016,13.55,Materials - General,"Grocery Stores, Supermarkets",GPC
Statement 18/06/2016 - 18/07/2016,Adults and Communities,ASDA STORES 4477,05/07/2016,3.95,Other Equipment & Materials - General,"Grocery Stores, Supermarkets",GPC
Statement 18/06/2016 - 18/07/2016,Adults and Communities,B & Q 1012,26/06/2016,98.61,General Equipment - General,"Building Materials, Lumber Stores",GPC
Statement 18/06/2016 - 18/07/2016,Adults and Communities,B & Q 1043,24/06/2016,37.56,Aids & Adaptations - Minor Adaptations,"Building Materials, Lumber Stores",GPC
Statement 18/06/2016 - 18/07/2016,Adults and Communities,B & Q 1043,01/07/2016,30.05,Operational Equipment - General,"Building Materials, Lumber Stores",GPC
Statement 18/06/2016 - 18/07/2016,Adults and Communities,B & Q 1052,09/07/2016,37.64,Furniture - General,"Building Materials, Lumber Stores",GPC
Statement 18/06/2016 - 18/07/2016,Adults and Communities,B & Q 1157,27/06/2016,4.00,Other Equipment & Materials - General,"Building Materials, Lumber Stores",GPC
Statement 18/06/2016 - 18/07/2016,Adults and Communities,B & Q 1157,22/06/2016,20.78,Other Services - General,"Building Materials, Lumber Stores",GPC
Statement 18/06/2016 - 18/07/2016,Adults and Communities,B&M RETAIL LTD,24/06/2016,31.54,General Equipment - General,Discount Stores,GPC
Statement 18/06/2016 - 18/07/2016,Adults and Communities,BC.BASECAMP 2997305,01/07/2016,15.11,IT Equipment - Licences,Membership Organizations-Not Elsewhere Classified,GPC
Statement 18/06/2016 - 18/07/2016,Adults and Communities,BOC TEL ORDER,07/07/2016,29.76,Operational Equipment - General,Chemicals and Allied Products Not Elsewhere Classi,GPC
Statement 18/06/2016 - 18/07/2016,Adults and Communities,BOC TEL ORDER,11/07/2016,6.76,Operational Equipment - General,Chemicals and Allied Products Not Elsewhere Classi,GPC
Statement 18/06/2016 - 18/07/2016,Adults and Communities,BOOTS 0020,28/06/2016,22.96,Other Equipment & Materials - General,"Drug Stores, Pharmacies",GPC
Statement 18/06/2016 - 18/07/2016,Adults and Communities,CAFE 1505,23/06/2016,10.15,Conference - General,"Lodging-Hotels, Motels, Resorts",GPC
Statement 18/06/2016 - 18/07/2016,Adults and Communities,CAFE 1505,24/06/2016,5.30,Conference - General,"Lodging-Hotels, Motels, Resorts",GPC
Statement 18/06/2016 - 18/07/2016,Adults and Communities,CAFE ACACIA LTD,13/07/2016,121.00,Display/Conservn/Exhibitions - Exhibitions,"Eating Places, Restaurants",GPC
Statement 18/06/2016 - 18/07/2016,Adults and Communities,CANARY CARE INV0744,14/07/2016,48.00,Materials - General,"Furniture, Home Furnishings and Equipment Stores,",GPC
Statement 18/06/2016 - 18/07/2016,Adults and Communities,CENTRAL ENG COOP,25/06/2016,44.86,Provisions - General,Department Stores,GPC
Statement 18/06/2016 - 18/07/2016,Adults and Communities,CENTRAL ENG COOP,30/06/2016,124.88,Provisions - General,Department Stores,GPC
Statement 18/06/2016 - 18/07/2016,Adults and Communities,CENTRAL ENG COOP,01/07/2016,74.82,Provisions - General,Department Stores,GPC
Statement 18/06/2016 - 18/07/2016,Adults and Communities,CENTRAL ENG COOP,02/07/2016,13.09,Provisions - General,Department Stores,GPC
Statement 18/06/2016 - 18/07/2016,Adults and Communities,CENTRAL ENG COOP,05/07/2016,9.58,Provisions - General,Department Stores,GPC
Statement 18/06/2016 - 18/07/2016,Adults and Communities,CENTRAL ENG COOP,06/07/2016,98.56,Provisions - General,Department Stores,GPC
Statement 18/06/2016 - 18/07/2016,Adults and Communities,CENTRAL ENG COOP,07/07/2016,3.98,Provisions - General,Department Stores,GPC
Statement 18/06/2016 - 18/07/2016,Adults and Communities,CENTRAL ENG COOP,07/07/2016,20.95,Provisions - General,Department Stores,GPC
Statement 18/06/2016 - 18/07/2016,Adults and Communities,CENTRAL ENG COOP,08/07/2016,65.60,Provisions - General,Department Stores,GPC
Statement 18/06/2016 - 18/07/2016,Adults and Communities,CENTRAL ENG COOP,09/07/2016,32.25,Provisions - General,Department Stores,GPC
Statement 18/06/2016 - 18/07/2016,Adults and Communities,CENTRAL ENG COOP,13/07/2016,33.39,Provisions - General,Department Stores,GPC
Statement 18/06/2016 - 18/07/2016,Adults and Communities,CENTRAL ENG COOP,14/07/2016,115.63,Provisions - General,Department Stores,GPC
Statement 18/06/2016 - 18/07/2016,Adults and Communities,CENTRAL ENG COOP,14/07/2016,2.55,Provisions - General,Department Stores,GPC
Statement 18/06/2016 - 18/07/2016,Adults and Communities,CHARNWOOD BOROUGH COUNCI,29/06/2016,6.00,Casual/Essential - General,Automobile Parking Lots and Garages,GPC
Statement 18/06/2016 - 18/07/2016,Adults and Communities,CHARNWOOD BOROUGH COUNCI,05/07/2016,6.00,Casual/Essential - General,Automobile Parking Lots and Garages,GPC
Statement 18/06/2016 - 18/07/2016,Adults and Communities,CHARNWOOD BOROUGH COUNCI,13/07/2016,6.00,Casual/Essential - General,Automobile Parking Lots and Garages,GPC
Statement 18/06/2016 - 18/07/2016,Adults and Communities,CHARNWOOD BOROUGH COUNCI,15/07/2016,6.00,Casual/Essential - General,Automobile Parking Lots and Garages,GPC
Statement 18/06/2016 - 18/07/2016,Adults and Communities,CITY & GUILDS,06/07/2016,727.50,Exam Fees - General,Charitable and Social Service Organizations,GPC
Statement 18/06/2016 - 18/07/2016,Adults and Communities,CITY & GUILDS,11/07/2016,720.00,Exam Fees - General,Charitable and Social Service Organizations,GPC
Statement 18/06/2016 - 18/07/2016,Adults and Communities,CITY & GUILDS,13/07/2016,716.00,Exam Fees - General,Charitable and Social Service Organizations,GPC
Statement 18/06/2016 - 18/07/2016,Adults and Communities,COCO DI MAMA,06/07/2016,6.99,Subsistence - General,"Eating Places, Restaurants",GPC
Statement 18/06/2016 - 18/07/2016,Adults and Communities,CONSERVATION.CO.UK,13/07/2016,54.25,Stationery - General,"Stationary, Office Supplies, Printing and Writing",GPC
Statement 18/06/2016 - 18/07/2016,Adults and Communities,COSTA COFFEE,24/06/2016,3.70,Client/Volunteers - General,"Miscellaneous Food Stores-Convenience Stores, Mark",GPC
Statement 18/06/2016 - 18/07/2016,Adults and Communities,COSYFEET WALKTALL & TP,21/06/2016,61.50,Training Expenses - General,Shoe Stores,GPC
Statement 18/06/2016 - 18/07/2016,Adults and Communities,COUTURE - NOTTINGH,28/06/2016,10.25,Other Expenditure - General,Caterers,GPC
Statement 18/06/2016 - 18/07/2016,Adults and Communities,CVLE / MPLC,05/07/2016,186.00,Other Expenditure - General,"Management, Consulting and Public Relations Servic",GPC
Statement 18/06/2016 - 18/07/2016,Adults and Communities,CYCLING TIME TRIALS,10/07/2016,21.00,Other Expenditure - General,"Civic, Social, and Fraternal Associations",GPC
Statement 18/06/2016 - 18/07/2016,Adults and Communities,DE MONTFORT EXPERTISE LTD,17/06/2016,279.00,Training Expenses - General,"Colleges, Universities, Professional Schools, and",GPC
Statement 18/06/2016 - 18/07/2016,Adults and Communities,DE MONTFORT EXPERTISE LTD,14/07/2016,339.46,Training Expenses - General,"Colleges, Universities, Professional Schools, and",GPC
Statement 18/06/2016 - 18/07/2016,Adults and Communities,DECATHLON,17/06/2016,9.99,Materials - General,Sporting Goods Stores,GPC
Statement 18/06/2016 - 18/07/2016,Adults and Communities,DEVIL'S ADVOCATE L,22/06/2016,14.00,Conference - General,"Drinking Places (Alcoholic Beverages)-Bars, Tavern",GPC
Statement 18/06/2016 - 18/07/2016,Adults and Communities,DFS FIXINGS,27/06/2016,32.51,Aids & Adaptations - Minor Adaptations,Hardware Equipment and Supplies,GPC
Statement 18/06/2016 - 18/07/2016,Adults and Communities,DFS FIXINGS,01/07/2016,83.33,Aids & Adaptations - Minor Adaptations,Hardware Equipment and Supplies,GPC
Statement 18/06/2016 - 18/07/2016,Adults and Communities,DFS FIXINGS,01/07/2016,83.33,Aids & Adaptations - Minor Adaptations,Hardware Equipment and Supplies,GPC
Statement 18/06/2016 - 18/07/2016,Adults and Communities,DFS FIXINGS,01/07/2016,43.89,Aids & Adaptations - Minor Adaptations,Hardware Equipment and Supplies,GPC
Statement 18/06/2016 - 18/07/2016,Adults and Communities,DOBBIES,09/07/2016,37.48,Display/Conservn/Exhibitions - Exhibitions,"Lawn and Garden Supply Stores, Nurseries",GPC
Statement 18/06/2016 - 18/07/2016,Adults and Communities,DUNELM (SOFT FURNISHIN,13/07/2016,8.33,General Equipment - General,"Drapery, Window Coverings, and Upholstery Stores",GPC
Statement 18/06/2016 - 18/07/2016,Adults and Communities,DUNELM (SOFT FURNISHIN,28/06/2016,91.74,Operational Equipment - General,"Drapery, Window Coverings, and Upholstery Stores",GPC
Statement 18/06/2016 - 18/07/2016,Adults and Communities,DVLA VEHICLE TAX,23/06/2016,232.50,Road Licences - General,Government Services-Not Elsewhere Classified,GPC
Statement 18/06/2016 - 18/07/2016,Adults and Communities,DVLA VEHICLE TAX,23/06/2016,232.50,Road Licences - General,Government Services-Not Elsewhere Classified,GPC
Statement 18/06/2016 - 18/07/2016,Adults and Communities,E COAST MAIN LN CO LTD,24/06/2016,44.00,Public Transport -  Staff - General,Automobile Parking Lots and Garages,GPC
Statement 18/06/2016 - 18/07/2016,Adults and Communities,EAST MIDLANDS TRAI,21/06/2016,28.90,Public Transport -  Staff - General,Passenger Railways,GPC
Statement 18/06/2016 - 18/07/2016,Adults and Communities,EAST MIDLANDS TRAI,22/06/2016,57.80,Public Transport -  Staff - General,Passenger Railways,GPC
Statement 18/06/2016 - 18/07/2016,Adults and Communities,EASTMIDLANDSTRAINS,27/06/2016,16.15,Casual/Essential - General,Passenger Railways,GPC
Statement 18/06/2016 - 18/07/2016,Adults and Communities,EASTMIDLANDSTRAINS,27/06/2016,15.50,Casual/Essential - General,Passenger Railways,GPC
Statement 18/06/2016 - 18/07/2016,Adults and Communities,EASTMIDLANDSTRAINS,17/06/2016,27.80,Public Transport -  Staff - General,Passenger Railways,GPC
Statement 18/06/2016 - 18/07/2016,Adults and Communities,EDEN TYRE SALES LTD,05/07/2016,24.96,R&M of Vehicles-Non Contract - General,Automotive Tire Stores,GPC
Statement 18/06/2016 - 18/07/2016,Adults and Communities,FLETCHERGATE CARPARK,28/06/2016,6.40,Public Transport -  Staff - General,Automobile Parking Lots and Garages,GPC
Statement 18/06/2016 - 18/07/2016,Adults and Communities,FOREIGN EXCHANGE FEE,04/07/2016,0.42,IT Equipment - Licences,Misc-Unknown,GPC
Statement 18/06/2016 - 18/07/2016,Adults and Communities,FOREIGN EXCHANGE FEE,24/06/2016,0.47,Schools Agency staff - Support Staff,Misc-Unknown,GPC
Statement 18/06/2016 - 18/07/2016,Adults and Communities,GOOSEBERRY BUSH,07/07/2016,239.65,Schools Agency staff - Teaching Staff,Child Care Services,GPC
Statement 18/06/2016 - 18/07/2016,Adults and Communities,GREEN,22/06/2016,31.92,Other Services - General,"Lawn and Garden Supply Stores, Nurseries",GPC
Statement 18/06/2016 - 18/07/2016,Adults and Communities,GREENWOODS STOCK B,24/06/2016,74.48,Other Equipment & Materials - General,Commercial Equipment Not Elsewhere Classified,GPC
Statement 18/06/2016 - 18/07/2016,Adults and Communities,GRO HM PASSPORT OFFICE,23/06/2016,9.25,Other Expenditure - General,Government Services-Not Elsewhere Classified,GPC
Statement 18/06/2016 - 18/07/2016,Adults and Communities,GRO HM PASSPORT OFFICE,14/07/2016,18.50,Other Expenditure - General,Government Services-Not Elsewhere Classified,GPC
Statement 18/06/2016 - 18/07/2016,Adults and Communities,GRO HM PASSPORT OFFICE,14/07/2016,18.50,Other Expenditure - General,Government Services-Not Elsewhere Classified,GPC
Statement 18/06/2016 - 18/07/2016,Adults and Communities,HINCKLEY PLUMBING AND HEA,12/07/2016,100.16,R & M of Buildings - General,"Heating, Plumbing, Air Conditioning Contractors",GPC
Statement 18/06/2016 - 18/07/2016,Adults and Communities,HKS IBSTOCK,05/07/2016,8.33,R&M of Vehicles-Non Contract - General,Service Stations (with or without Ancillary Servic,GPC
Statement 18/06/2016 - 18/07/2016,Adults and Communities,HOLIDAY INNS,02/07/2016,62.50,Subsistence - General,Holiday Inns,GPC
Statement 18/06/2016 - 18/07/2016,Adults and Communities,HOME BARGAINS COALVILL,04/07/2016,2.76,Materials - General,Hardware Stores,GPC
Statement 18/06/2016 - 18/07/2016,Adults and Communities,HOME BARGAINS COALVILL,27/06/2016,3.32,Other Equipment & Materials - General,Hardware Stores,GPC
Statement 18/06/2016 - 18/07/2016,Adults and Communities,HOMEBASE LTD,06/07/2016,11.05,Other Services - General,"Building Materials, Lumber Stores",GPC
Statement 18/06/2016 - 18/07/2016,Adults and Communities,ICELAND,18/06/2016,13.98,Materials - General,"Grocery Stores, Supermarkets",GPC
Statement 18/06/2016 - 18/07/2016,Adults and Communities,ICELAND,14/07/2016,24.74,Provisions - General,"Grocery Stores, Supermarkets",GPC
Statement 18/06/2016 - 18/07/2016,Adults and Communities,IKEA,17/06/2016,31.06,Materials - General,Miscellaneous House Furnishing Specialty Shops,GPC
Statement 18/06/2016 - 18/07/2016,Adults and Communities,IKEA ONLINE,04/07/2016,128.34,Furniture - General,Miscellaneous House Furnishing Specialty Shops,GPC
Statement 18/06/2016 - 18/07/2016,Adults and Communities,IZ  Cafe Torte,08/07/2016,4.55,Client/Volunteers - General,"Eating Places, Restaurants",GPC
Statement 18/06/2016 - 18/07/2016,Adults and Communities,LEIC CITY COUNCIL,21/06/2016,23.00,Other Expenditure - General,Government Services-Not Elsewhere Classified,GPC
Statement 18/06/2016 - 18/07/2016,Adults and Communities,LEIC CITY COUNCIL,22/06/2016,13.00,Other Expenditure - General,Government Services-Not Elsewhere Classified,GPC
Statement 18/06/2016 - 18/07/2016,Adults and Communities,LEIC CITY COUNCIL,23/06/2016,13.00,Other Expenditure - General,Government Services-Not Elsewhere Classified,GPC
Statement 18/06/2016 - 18/07/2016,Adults and Communities,LEIC CITY COUNCIL,23/06/2016,13.00,Other Expenditure - General,Government Services-Not Elsewhere Classified,GPC
Statement 18/06/2016 - 18/07/2016,Adults and Communities,LEIC CITY COUNCIL,29/06/2016,13.00,Other Expenditure - General,Government Services-Not Elsewhere Classified,GPC
Statement 18/06/2016 - 18/07/2016,Adults and Communities,LEIC CITY COUNCIL,29/06/2016,13.00,Other Expenditure - General,Government Services-Not Elsewhere Classified,GPC
Statement 18/06/2016 - 18/07/2016,Adults and Communities,LEIC CITY COUNCIL,06/07/2016,13.00,Other Expenditure - General,Government Services-Not Elsewhere Classified,GPC
Statement 18/06/2016 - 18/07/2016,Adults and Communities,LEIC CITY COUNCIL,12/07/2016,13.00,Other Expenditure - General,Government Services-Not Elsewhere Classified,GPC
Statement 18/06/2016 - 18/07/2016,Adults and Communities,LEIC CITY COUNCIL,12/07/2016,23.00,Other Expenditure - General,Government Services-Not Elsewhere Classified,GPC
Statement 18/06/2016 - 18/07/2016,Adults and Communities,LEIC CITY COUNCIL,18/06/2016,4.25,Schools Agency staff - Support Staff,Government Services-Not Elsewhere Classified,GPC
Statement 18/06/2016 - 18/07/2016,Adults and Communities,LEICESTER THURMAS,13/07/2016,6.08,Aids & Adaptations - Minor Adaptations,"Building Materials, Lumber Stores",GPC
Statement 18/06/2016 - 18/07/2016,Adults and Communities,LUL TICKET MACHINE,06/07/2016,5.00,Casual/Essential - General,Passenger Railways,GPC
Statement 18/06/2016 - 18/07/2016,Adults and Communities,MARKS&SPENCER PLC,23/06/2016,5.00,Materials - General,"Grocery Stores, Supermarkets",GPC
Statement 18/06/2016 - 18/07/2016,Adults and Communities,MARKS&SPENCER PLC,15/07/2016,193.00,Materials - General,"Grocery Stores, Supermarkets",GPC
Statement 18/06/2016 - 18/07/2016,Adults and Communities,MARKS&SPENCER PLC,15/07/2016,124.00,Materials - General,"Grocery Stores, Supermarkets",GPC
Statement 18/06/2016 - 18/07/2016,Adults and Communities,MARKS&SPENCER PLC,15/07/2016,134.83,Materials - General,"Grocery Stores, Supermarkets",GPC
Statement 18/06/2016 - 18/07/2016,Adults and Communities,MERCURY NEWS 63917/453,08/07/2016,102.92,Newspapers & Periodicals - General,"Grocery Stores, Supermarkets",GPC
Statement 18/06/2016 - 18/07/2016,Adults and Communities,MOTEL ONE EDINBURGH ROYAL,21/06/2016,263.33,Conference - General,"Lodging-Hotels, Motels, Resorts",GPC
Statement 18/06/2016 - 18/07/2016,Adults and Communities,MOTEL ONE EDINBURGH ROYAL,24/06/2016,9.50,Subsistence - General,"Lodging-Hotels, Motels, Resorts",GPC
Statement 18/06/2016 - 18/07/2016,Adults and Communities,NATIONAL MUSEUM OF SCO,24/06/2016,9.50,Subsistence - General,"Eating Places, Restaurants",GPC
Statement 18/06/2016 - 18/07/2016,Adults and Communities,NATIONAL SPACE CENTRE,30/06/2016,61.25,Consultants & Specialists - General,Tourist Attractions and Exhibits,GPC
Statement 18/06/2016 - 18/07/2016,Adults and Communities,NATIONAL SPACE CENTRE,28/06/2016,73.50,Public Transport -  Staff - General,Tourist Attractions and Exhibits,GPC
Statement 18/06/2016 - 18/07/2016,Adults and Communities,NCP LIMITED,05/07/2016,8.50,Casual/Essential - General,Automobile Parking Lots and Garages,GPC
Statement 18/06/2016 - 18/07/2016,Adults and Communities,NCP LIMITED,18/06/2016,12.50,Schools Agency staff - Support Staff,Automobile Parking Lots and Garages,GPC
Statement 18/06/2016 - 18/07/2016,Adults and Communities,OCADO LTD.,17/06/2016,89.85,Provisions - General,"Miscellaneous Food Stores-Convenience Stores, Mark",GPC
Statement 18/06/2016 - 18/07/2016,Adults and Communities,OCADO LTD.,24/06/2016,114.41,Provisions - General,"Miscellaneous Food Stores-Convenience Stores, Mark",GPC
Statement 18/06/2016 - 18/07/2016,Adults and Communities,OCADO LTD.,27/06/2016,145.66,Provisions - General,"Miscellaneous Food Stores-Convenience Stores, Mark",GPC
Statement 18/06/2016 - 18/07/2016,Adults and Communities,OCADO LTD.,01/07/2016,99.33,Provisions - General,"Miscellaneous Food Stores-Convenience Stores, Mark",GPC
Statement 18/06/2016 - 18/07/2016,Adults and Communities,OCADO LTD.,04/07/2016,108.56,Provisions - General,"Miscellaneous Food Stores-Convenience Stores, Mark",GPC
Statement 18/06/2016 - 18/07/2016,Adults and Communities,OCADO LTD.,08/07/2016,101.48,Provisions - General,"Miscellaneous Food Stores-Convenience Stores, Mark",GPC
Statement 18/06/2016 - 18/07/2016,Adults and Communities,OCADO LTD.,11/07/2016,70.81,Provisions - General,"Miscellaneous Food Stores-Convenience Stores, Mark",GPC
Statement 18/06/2016 - 18/07/2016,Adults and Communities,OCADO LTD.,15/07/2016,167.08,Provisions - General,"Miscellaneous Food Stores-Convenience Stores, Mark",GPC
Statement 18/06/2016 - 18/07/2016,Adults and Communities,OCADO RETAIL LIMIT,20/06/2016,90.11,Provisions - General,"Miscellaneous Food Stores-Convenience Stores, Mark",GPC
Statement 18/06/2016 - 18/07/2016,Adults and Communities,OX 184,21/06/2016,28.20,Conference - General,"Eating Places, Restaurants",GPC
Statement 18/06/2016 - 18/07/2016,Adults and Communities,PANJAB TIMES INTERNATI,30/06/2016,75.00,Books - General,Miscellaneous Publishing and  Printing,GPC
Statement 18/06/2016 - 18/07/2016,Adults and Communities,PAYPAL  B15UNO,21/06/2016,4.99,Display/Conservn/Exhibitions - Conservation,Computer Network/Information Services,GPC
Statement 18/06/2016 - 18/07/2016,Adults and Communities,PAYPAL  ILLUSION,11/07/2016,3.98,Public Transport -  Staff - General,"Theatrical Products (Except Motion Pictures), Tick",GPC
Statement 18/06/2016 - 18/07/2016,Adults and Communities,PAYPAL  PCROSSMAN,15/07/2016,200.00,Materials - General,Miscellaneous Apparel and Accessory Stores,GPC
Statement 18/06/2016 - 18/07/2016,Adults and Communities,PAYPAL  STICKER W,12/07/2016,3.57,Other Expenditure - General,"Artist Supply Stores, Craft Shops",GPC
Statement 18/06/2016 - 18/07/2016,Adults and Communities,PAYPAL  STICKER W,12/07/2016,3.57,Other Expenditure - General,"Artist Supply Stores, Craft Shops",GPC
Statement 18/06/2016 - 18/07/2016,Adults and Communities,PAYPAL  STICKER W,12/07/2016,3.57,Other Expenditure - General,"Artist Supply Stores, Craft Shops",GPC
Statement 18/06/2016 - 18/07/2016,Adults and Communities,PAYPAL  TOBY THOMAS,29/06/2016,145.00,Training Expenses - General,"Colleges, Universities, Professional Schools, and",GPC
Statement 18/06/2016 - 18/07/2016,Adults and Communities,PAYPAL  TOBY THOMAS,11/07/2016,125.00,Training Expenses - General,"Colleges, Universities, Professional Schools, and",GPC
Statement 18/06/2016 - 18/07/2016,Adults and Communities,PAYPAL  WORKSHOPSAT,24/06/2016,28.00,Other Equipment & Materials - General,Miscellaneous Apparel and Accessory Stores,GPC
Statement 18/06/2016 - 18/07/2016,Adults and Communities,PAYPAL  WU GUI JUN,13/07/2016,65.00,IT Equipment - Maintenance,Variety Stores,GPC
Statement 18/06/2016 - 18/07/2016,Adults and Communities,PEYTON & BYRNE,04/07/2016,10.00,Conference - General,"Eating Places, Restaurants",GPC
Statement 18/06/2016 - 18/07/2016,Adults and Communities,PLANTABOX.CO.UK,13/07/2016,98.14,Revenue Financing of Capital - General,"Gift, Card, Novelty, and Souvenir Shops",GPC
Statement 18/06/2016 - 18/07/2016,Adults and Communities,PLASTIC-ID,29/06/2016,23.10,Stationery - General,"Stationary, Office Supplies, Printing and Writing",GPC
Statement 18/06/2016 - 18/07/2016,Adults and Communities,PONDEN HOME,08/07/2016,18.00,Furniture - General,Miscellaneous House Furnishing Specialty Shops,GPC
Statement 18/06/2016 - 18/07/2016,Adults and Communities,POST OFFICE COUNTER,29/06/2016,13.68,Other Equipment & Materials - General,Postage Stamps,GPC
Statement 18/06/2016 - 18/07/2016,Adults and Communities,POST OFFICE COUNTER,07/07/2016,12.98,Postal Services - General,Postage Stamps,GPC
Statement 18/06/2016 - 18/07/2016,Adults and Communities,POST OFFICE COUNTER,08/07/2016,10.05,Postal Services - General,Postage Stamps,GPC
Statement 18/06/2016 - 18/07/2016,Adults and Communities,POST OFFICE SHOP,05/07/2016,184.20,General Equipment - General,Postage Stamps,GPC
Statement 18/06/2016 - 18/07/2016,Adults and Communities,POUNDSTRETCHER 292,08/07/2016,8.97,General Equipment - General,"Drapery, Window Coverings, and Upholstery Stores",GPC
Statement 18/06/2016 - 18/07/2016,Adults and Communities,PREMIER MOBILITY (UK),17/06/2016,51.33,General Equipment - General,Laboratory/Medical/Dental/Ophthalmic Hospital Equi,GPC
Statement 18/06/2016 - 18/07/2016,Adults and Communities,RYMAN,04/07/2016,37.86,Other Expenditure - General,"Stationery, Office, and School Supply Stores",GPC
Statement 18/06/2016 - 18/07/2016,Adults and Communities,RYMAN,04/07/2016,14.76,Other Expenditure - General,"Stationery, Office, and School Supply Stores",GPC
Statement 18/06/2016 - 18/07/2016,Adults and Communities,RYMAN,21/06/2016,46.95,Stationery - General,"Stationery, Office, and School Supply Stores",GPC
Statement 18/06/2016 - 18/07/2016,Adults and Communities,RYMAN,13/07/2016,10.47,Stationery - General,"Stationery, Office, and School Supply Stores",GPC
Statement 18/06/2016 - 18/07/2016,Adults and Communities,SAFECLEAN,20/06/2016,78.00,Cleaning Materials - General,Carpet and Upholstery Cleaning,GPC
Statement 18/06/2016 - 18/07/2016,Adults and Communities,SAFECLEAN,24/06/2016,220.00,Cleaning Materials - General,Carpet and Upholstery Cleaning,GPC
Statement 18/06/2016 - 18/07/2016,Adults and Communities,SAFESTORE LIMITED,27/06/2016,117.00,Other Expenditure - General,Public Warehousing,GPC
Statement 18/06/2016 - 18/07/2016,Adults and Communities,SAINSBURYS LOCAL,30/06/2016,5.00,Provisions - General,"Grocery Stores, Supermarkets",GPC
Statement 18/06/2016 - 18/07/2016,Adults and Communities,SAINSBURYS S/MKT,11/07/2016,10.00,Display/Conservn/Exhibitions - Exhibitions,"Grocery Stores, Supermarkets",GPC
Statement 18/06/2016 - 18/07/2016,Adults and Communities,SAINSBURY'S S/MKT,21/06/2016,13.50,Stationery - General,"Grocery Stores, Supermarkets",GPC
Statement 18/06/2016 - 18/07/2016,Adults and Communities,SAINSBURY'S S/MKT,14/07/2016,11.50,Stationery - General,"Grocery Stores, Supermarkets",GPC
Statement 18/06/2016 - 18/07/2016,Adults and Communities,Sainsburys S/mkts,29/06/2016,5.54,Materials - General,"Grocery Stores, Supermarkets",GPC
Statement 18/06/2016 - 18/07/2016,Adults and Communities,Sainsburys S/mkts,14/07/2016,15.75,Materials - General,"Grocery Stores, Supermarkets",GPC
Statement 18/06/2016 - 18/07/2016,Adults and Communities,SCREWFIX,06/07/2016,14.16,Aids & Adaptations - Minor Adaptations,"Building Materials, Lumber Stores",GPC
Statement 18/06/2016 - 18/07/2016,Adults and Communities,SCREWFIX,08/07/2016,21.98,Furniture - General,"Building Materials, Lumber Stores",GPC
Statement 18/06/2016 - 18/07/2016,Adults and Communities,SCREWFIX,12/07/2016,62.15,General Equipment - General,"Building Materials, Lumber Stores",GPC
Statement 18/06/2016 - 18/07/2016,Adults and Communities,SCREWFIX,15/07/2016,-6.65,R & M of Buildings - General,"Building Materials, Lumber Stores",GPC
Statement 18/06/2016 - 18/07/2016,Adults and Communities,SMITH BROTHERS STORES,11/07/2016,55.37,Aids & Adaptations - Minor Adaptations,"Heating, Plumbing, Air Conditioning Contractors",GPC
Statement 18/06/2016 - 18/07/2016,Adults and Communities,STAFFORDSHIRE COUNTY C,21/06/2016,-20.00,Other Expenditure - General,Government Services-Not Elsewhere Classified,GPC
Statement 18/06/2016 - 18/07/2016,Adults and Communities,TALKTALK BUSINESS,30/06/2016,52.29,Telephones - General,Telecommunication Service Including Local and Long,GPC
Statement 18/06/2016 - 18/07/2016,Adults and Communities,TESCO STORE 2849,19/06/2016,6.00,Other Equipment & Materials - General,"Grocery Stores, Supermarkets",GPC
Statement 18/06/2016 - 18/07/2016,Adults and Communities,TESCO STORES 2044,18/06/2016,5.50,Materials - General,"Grocery Stores, Supermarkets",GPC
Statement 18/06/2016 - 18/07/2016,Adults and Communities,TESCO STORES 5182,15/07/2016,119.82,Materials - General,"Grocery Stores, Supermarkets",GPC
Statement 18/06/2016 - 18/07/2016,Adults and Communities,TESCO STORES 5182,15/07/2016,12.85,Materials - General,"Grocery Stores, Supermarkets",GPC
Statement 18/06/2016 - 18/07/2016,Adults and Communities,TESCO STORES 5182,24/06/2016,39.40,Operational Equipment - General,"Grocery Stores, Supermarkets",GPC
Statement 18/06/2016 - 18/07/2016,Adults and Communities,TESCO STORES 5182,04/07/2016,123.78,Operational Equipment - General,"Grocery Stores, Supermarkets",GPC
Statement 18/06/2016 - 18/07/2016,Adults and Communities,TESCO STORES 5182,17/06/2016,156.37,Provisions - General,"Grocery Stores, Supermarkets",GPC
Statement 18/06/2016 - 18/07/2016,Adults and Communities,TESCO STORES 5182,20/06/2016,123.63,Provisions - General,"Grocery Stores, Supermarkets",GPC
Statement 18/06/2016 - 18/07/2016,Adults and Communities,TESCO STORES 5182,22/06/2016,56.10,Provisions - General,"Grocery Stores, Supermarkets",GPC
Statement 18/06/2016 - 18/07/2016,Adults and Communities,TESCO STORES 5182,24/06/2016,137.50,Provisions - General,"Grocery Stores, Supermarkets",GPC
Statement 18/06/2016 - 18/07/2016,Adults and Communities,TESCO STORES 5182,27/06/2016,139.34,Provisions - General,"Grocery Stores, Supermarkets",GPC
Statement 18/06/2016 - 18/07/2016,Adults and Communities,TESCO STORES 5182,01/07/2016,102.01,Provisions - General,"Grocery Stores, Supermarkets",GPC
Statement 18/06/2016 - 18/07/2016,Adults and Communities,TESCO STORES 5182,08/07/2016,144.21,Provisions - General,"Grocery Stores, Supermarkets",GPC
Statement 18/06/2016 - 18/07/2016,Adults and Communities,TESCO STORES 5182,11/07/2016,83.66,Provisions - General,"Grocery Stores, Supermarkets",GPC
Statement 18/06/2016 - 18/07/2016,Adults and Communities,THE BOOK PEOPLE,06/07/2016,118.99,Books - General,Book Stores,GPC
Statement 18/06/2016 - 18/07/2016,Adults and Communities,THE CHELSEA MAGAZINE C,12/07/2016,41.25,Books - General,Miscellaneous Publishing and  Printing,GPC
Statement 18/06/2016 - 18/07/2016,Adults and Communities,THE RANGE,15/07/2016,43.52,Materials - General,Department Stores,GPC
Statement 18/06/2016 - 18/07/2016,Adults and Communities,THE SCOTTISH CAFE AND RES,23/06/2016,6.30,Conference - General,"Eating Places, Restaurants",GPC
Statement 18/06/2016 - 18/07/2016,Adults and Communities,THREE-BILLPAY(CC),21/06/2016,19.99,Other Expenditure - General,Telecommunication Service Including Local and Long,GPC
Statement 18/06/2016 - 18/07/2016,Adults and Communities,THREE-BILLPAY(CC),12/07/2016,19.99,Other Expenditure - General,Telecommunication Service Including Local and Long,GPC
Statement 18/06/2016 - 18/07/2016,Adults and Communities,THREE-BILLPAY(CC),21/06/2016,9.99,Schools Agency staff - Support Staff,Telecommunication Service Including Local and Long,GPC
Statement 18/06/2016 - 18/07/2016,Adults and Communities,THREE-BILLPAY(CC),12/07/2016,9.99,Schools Agency staff - Support Staff,Telecommunication Service Including Local and Long,GPC
Statement 18/06/2016 - 18/07/2016,Adults and Communities,TRAINLINE,29/06/2016,25.55,Casual/Essential - General,Passenger Railways,GPC
Statement 18/06/2016 - 18/07/2016,Adults and Communities,TRAINLINE,12/07/2016,17.09,Casual/Essential - General,Passenger Railways,GPC
Statement 18/06/2016 - 18/07/2016,Adults and Communities,TRAINLINE,20/06/2016,8.93,Public Transport -  Staff - General,Passenger Railways,GPC
Statement 18/06/2016 - 18/07/2016,Adults and Communities,TRAINLINE,21/06/2016,32.08,Public Transport -  Staff - General,Passenger Railways,GPC
Statement 18/06/2016 - 18/07/2016,Adults and Communities,TRAINLINE,23/06/2016,64.16,Public Transport -  Staff - General,Passenger Railways,GPC
Statement 18/06/2016 - 18/07/2016,Adults and Communities,TRAINLINE,23/06/2016,15.25,Public Transport -  Staff - General,Passenger Railways,GPC
Statement 18/06/2016 - 18/07/2016,Adults and Communities,TRAINLINE,27/06/2016,-51.40,Public Transport -  Staff - General,Passenger Railways,GPC
Statement 18/06/2016 - 18/07/2016,Adults and Communities,TRAINLINE,27/06/2016,64.16,Public Transport -  Staff - General,Passenger Railways,GPC
Statement 18/06/2016 - 18/07/2016,Adults and Communities,TRAINLINE,04/07/2016,13.62,Public Transport -  Staff - General,Passenger Railways,GPC
Statement 18/06/2016 - 18/07/2016,Adults and Communities,TRAMLINK NOTTINGHAM LIMIT,24/06/2016,4.00,Casual/Essential - General,Local and Suburban Commuter Pass Trans,GPC
Statement 18/06/2016 - 18/07/2016,Adults and Communities,TREEHOUSE,23/06/2016,17.06,Training Expenses - General,Schools and Educational Services-Not Elsewhere Cla,GPC
Statement 18/06/2016 - 18/07/2016,Adults and Communities,TRINITY COURT POTTERIE,16/06/2016,243.00,Materials - General,"Artist Supply Stores, Craft Shops",GPC
Statement 18/06/2016 - 18/07/2016,Adults and Communities,TRINITY SQ CARPARK,27/06/2016,6.50,Casual/Essential - General,Automobile Parking Lots and Garages,GPC
Statement 18/06/2016 - 18/07/2016,Adults and Communities,TUTTO MATTO,22/06/2016,19.00,Subsistence - General,"Eating Places, Restaurants",GPC
Statement 18/06/2016 - 18/07/2016,Adults and Communities,TVLICENSING.CO.UK,06/07/2016,145.50,Other Expenditure - General,"Management, Consulting and Public Relations Servic",GPC
Statement 18/06/2016 - 18/07/2016,Adults and Communities,UPT - EMT NOTTINGHAM RAI,07/07/2016,14.00,Schools Agency staff - Teaching Staff,Professional Services-Not Elsewhere Classified,GPC
Statement 18/06/2016 - 18/07/2016,Adults and Communities,VIRGIN TRAINS EC,24/06/2016,7.10,Conference - General,Passenger Railways,GPC
Statement 18/06/2016 - 18/07/2016,Adults and Communities,VIRGINTRAINSEC PBO STN,21/06/2016,121.00,Public Transport -  Staff - General,Passenger Railways,GPC
Statement 18/06/2016 - 18/07/2016,Adults and Communities,VIRGINTRAINSEC SERVCS,02/07/2016,18.00,Public Transport -  Staff - General,Passenger Railways,GPC
Statement 18/06/2016 - 18/07/2016,Adults and Communities,W BOYES & CO LTD COALV,04/07/2016,8.91,Materials - General,Discount Stores,GPC
Statement 18/06/2016 - 18/07/2016,Adults and Communities,WASH AND GLOW,21/06/2016,23.98,General Equipment - General,"Specialty Cleaning, Polishing, and Sanitation Prep",GPC
Statement 18/06/2016 - 18/07/2016,Adults and Communities,WH SMITH,06/07/2016,41.11,Newspapers & Periodicals - General,News Dealers and Newsstands,GPC
Statement 18/06/2016 - 18/07/2016,Adults and Communities,WILKO RETAIL LIMIT,28/06/2016,10.00,General Equipment - General,Household Appliance Stores,GPC
Statement 18/06/2016 - 18/07/2016,Adults and Communities,WILKO RETAIL LIMIT,13/07/2016,10.00,General Equipment - General,Household Appliance Stores,GPC
Statement 18/06/2016 - 18/07/2016,Adults and Communities,WILKO RETAIL LIMIT,29/06/2016,51.53,Materials - General,Household Appliance Stores,GPC
Statement 18/06/2016 - 18/07/2016,Adults and Communities,WILKO RETAIL LIMIT,06/07/2016,3.00,Materials - General,Household Appliance Stores,GPC
Statement 18/06/2016 - 18/07/2016,Adults and Communities,WILKO RETAIL LIMIT,13/07/2016,19.00,Materials - General,Household Appliance Stores,GPC
Statement 18/06/2016 - 18/07/2016,Adults and Communities,WILKO RETAIL LIMIT,15/07/2016,25.20,Materials - General,Household Appliance Stores,GPC
Statement 18/06/2016 - 18/07/2016,Adults and Communities,WM MORRISON 054,22/06/2016,89.33,Provisions - General,"Grocery Stores, Supermarkets",GPC
Statement 18/06/2016 - 18/07/2016,Adults and Communities,WM MORRISON 054,23/06/2016,149.56,Provisions - General,"Grocery Stores, Supermarkets",GPC
Statement 18/06/2016 - 18/07/2016,Adults and Communities,WM MORRISON 054,07/07/2016,114.53,Provisions - General,"Grocery Stores, Supermarkets",GPC
Statement 18/06/2016 - 18/07/2016,Adults and Communities,WM MORRISON 054,14/07/2016,99.24,Provisions - General,"Grocery Stores, Supermarkets",GPC
Statement 18/06/2016 - 18/07/2016,Adults and Communities,WM MORRISONS,13/07/2016,12.00,Provisions - General,"Grocery Stores, Supermarkets",GPC
Statement 18/06/2016 - 18/07/2016,Adults and Communities,WWW.BAKERROSS.CO.UK,30/06/2016,11.54,Display/Conservn/Exhibitions - Exhibitions,"Artist Supply Stores, Craft Shops",GPC
Statement 18/06/2016 - 18/07/2016,Adults and Communities,WWW.BAKERROSS.CO.UK,08/07/2016,32.19,Display/Conservn/Exhibitions - Exhibitions,"Artist Supply Stores, Craft Shops",GPC
Statement 18/06/2016 - 18/07/2016,Adults and Communities,WWW.EMBH-LTD.COM,30/06/2016,15.59,Materials - General,Miscellaneous and Specialty Retail Stores,GPC
Statement 18/06/2016 - 18/07/2016,Adults and Communities,WWW.GOV.UK,20/06/2016,10.00,Other Expenditure - Public Enquiry fees,Professional Services-Not Elsewhere Classified,GPC
Statement 18/06/2016 - 18/07/2016,Adults and Communities,WWW.GREENFINGERS.COM,30/06/2016,83.36,Protective Clothing & Uniforms - General,"Lawn and Garden Supply Stores, Nurseries",GPC
Statement 18/06/2016 - 18/07/2016,Adults and Communities,WWW.GREENFINGERS.COM,10/07/2016,-1.98,Protective Clothing & Uniforms - General,"Lawn and Garden Supply Stores, Nurseries",GPC
Statement 18/06/2016 - 18/07/2016,Adults and Communities,WWW.OFCOM.ORG.UK,14/07/2016,75.00,Subscriptions - General,Professional Services-Not Elsewhere Classified,GPC
Statement 18/06/2016 - 18/07/2016,Adults and Communities,WWW.PAMS.CO.UK,13/07/2016,116.72,Materials - General,Catalog Merchants,GPC
Statement 18/06/2016 - 18/07/2016,Adults and Communities,WWW.PAMS.CO.UK,13/07/2016,7.95,Other Expenditure - General,Catalog Merchants,GPC
Statement 18/06/2016 - 18/07/2016,Adults and Communities,WWW.PRESERVATIONEQUIPM,13/07/2016,182.15,Other Expenditure - General,Public Warehousing,GPC
Statement 18/06/2016 - 18/07/2016,Adults and Communities,WWW.PRESERVATIONEQUIPM,14/07/2016,40.62,Other Expenditure - General,Public Warehousing,GPC
Statement 18/06/2016 - 18/07/2016,Adults and Communities,WWW.PRESERVATIONEQUIPM,30/06/2016,254.95,Other Services - General,Public Warehousing,GPC
Statement 18/06/2016 - 18/07/2016,Adults and Communities,WWW.ROYALMAIL.COM,30/06/2016,290.00,Postal Services - General,Postage Stamps,GPC
Statement 18/06/2016 - 18/07/2016,Adults and Communities,WWW.ROYALMAIL.COM,14/07/2016,55.00,Postal Services - General,Postage Stamps,GPC
Statement 18/06/2016 - 18/07/2016,Adults and Communities,WWW.TWYCROSSZOO.ORG,07/07/2016,65.48,Public Transport -  Staff - General,Tourist Attractions and Exhibits,GPC
Statement 18/06/2016 - 18/07/2016,Adults and Communities,WWW.VIKING-DIRECT.CO.U,29/06/2016,171.76,Stationery - General,"Stationary, Office Supplies, Printing and Writing",GPC
Statement 18/06/2016 - 18/07/2016,Adults and Communities,WWW.ZEN.CO.UK,30/06/2016,34.76,Telephones - General,Computer Network/Information Services,GPC
Statement 18/06/2016 - 18/07/2016,C&YPS-Non Delegated,ABLE REMOVALS AND STORAGE,28/06/2016,216.00,Other Expenditure - General,"Motor Freight Carriers, and Trucking",GPC
Statement 18/06/2016 - 18/07/2016,C&YPS-Non Delegated,ALDI,04/07/2016,21.08,Other Equipment & Materials - General,"Grocery Stores, Supermarkets",GPC
Statement 18/06/2016 - 18/07/2016,C&YPS-Non Delegated,ALDI,20/06/2016,25.91,Other Expenditure - General,"Grocery Stores, Supermarkets",GPC
Statement 18/06/2016 - 18/07/2016,C&YPS-Non Delegated,ALDI,11/07/2016,25.62,Other Expenditure - General,"Grocery Stores, Supermarkets",GPC
Statement 18/06/2016 - 18/07/2016,C&YPS-Non Delegated,ALDI,24/06/2016,18.46,Provisions - General,"Grocery Stores, Supermarkets",GPC
Statement 18/06/2016 - 18/07/2016,C&YPS-Non Delegated,ALDI,04/07/2016,94.80,Provisions - General,"Grocery Stores, Supermarkets",GPC
Statement 18/06/2016 - 18/07/2016,C&YPS-Non Delegated,ALLPAY MOTO (CALLPAY/IVR,13/07/2016,109.69,Other Transfer Payments - Section 24,Charitable and Social Service Organizations,GPC
Statement 18/06/2016 - 18/07/2016,C&YPS-Non Delegated,Amazon UK Marketplace,20/06/2016,37.36,Books - General,Book Stores,GPC
Statement 18/06/2016 - 18/07/2016,C&YPS-Non Delegated,Amazon UK Marketplace,22/06/2016,14.80,Books - General,Book Stores,GPC
Statement 18/06/2016 - 18/07/2016,C&YPS-Non Delegated,Amazon UK Marketplace,28/06/2016,5.19,Books - General,Book Stores,GPC
Statement 18/06/2016 - 18/07/2016,C&YPS-Non Delegated,Amazon UK Marketplace,29/06/2016,42.36,Books - General,Book Stores,GPC
Statement 18/06/2016 - 18/07/2016,C&YPS-Non Delegated,Amazon UK Marketplace,07/07/2016,13.94,Furniture - General,Miscellaneous and Specialty Retail Stores,GPC
Statement 18/06/2016 - 18/07/2016,C&YPS-Non Delegated,Amazon UK Marketplace,07/07/2016,55.76,Furniture - General,Miscellaneous and Specialty Retail Stores,GPC
Statement 18/06/2016 - 18/07/2016,C&YPS-Non Delegated,Amazon UK Marketplace,11/07/2016,-55.76,Furniture - General,Miscellaneous and Specialty Retail Stores,GPC
Statement 18/06/2016 - 18/07/2016,C&YPS-Non Delegated,Amazon UK Marketplace,11/07/2016,14.99,Furniture - General,Miscellaneous and Specialty Retail Stores,GPC
Statement 18/06/2016 - 18/07/2016,C&YPS-Non Delegated,Amazon UK Marketplace,06/07/2016,87.96,IT Equipment - General,Miscellaneous and Specialty Retail Stores,GPC
Statement 18/06/2016 - 18/07/2016,C&YPS-Non Delegated,Amazon UK Marketplace,06/07/2016,144.94,IT Equipment - General,Miscellaneous and Specialty Retail Stores,GPC
Statement 18/06/2016 - 18/07/2016,C&YPS-Non Delegated,Amazon UK Marketplace,11/07/2016,28.38,IT Equipment - General,Miscellaneous and Specialty Retail Stores,GPC
Statement 18/06/2016 - 18/07/2016,C&YPS-Non Delegated,Amazon UK Marketplace,22/06/2016,250.00,Materials - General,Miscellaneous and Specialty Retail Stores,GPC
Statement 18/06/2016 - 18/07/2016,C&YPS-Non Delegated,Amazon UK Marketplace,03/07/2016,2.04,Materials - General,Miscellaneous and Specialty Retail Stores,GPC
Statement 18/06/2016 - 18/07/2016,C&YPS-Non Delegated,Amazon UK Marketplace,03/07/2016,40.87,Materials - General,Miscellaneous and Specialty Retail Stores,GPC
Statement 18/06/2016 - 18/07/2016,C&YPS-Non Delegated,Amazon UK Marketplace,12/07/2016,149.79,Materials - General,Miscellaneous and Specialty Retail Stores,GPC
Statement 18/06/2016 - 18/07/2016,C&YPS-Non Delegated,Amazon UK Marketplace,05/07/2016,30.60,Other Equipment & Materials - General,Book Stores,GPC
Statement 18/06/2016 - 18/07/2016,C&YPS-Non Delegated,Amazon UK Marketplace,14/07/2016,20.38,Other Equipment & Materials - General,Miscellaneous and Specialty Retail Stores,GPC
Statement 18/06/2016 - 18/07/2016,C&YPS-Non Delegated,Amazon UK Marketplace,12/07/2016,59.99,Other Expenditure - General,Book Stores,GPC
Statement 18/06/2016 - 18/07/2016,C&YPS-Non Delegated,Amazon UK Marketplace,12/07/2016,59.99,Other Expenditure - General,Miscellaneous and Specialty Retail Stores,GPC
Statement 18/06/2016 - 18/07/2016,C&YPS-Non Delegated,Amazon UK Marketplace,07/07/2016,19.99,Stationery - General,Miscellaneous and Specialty Retail Stores,GPC
Statement 18/06/2016 - 18/07/2016,C&YPS-Non Delegated,Amazon UK Retail,22/06/2016,32.81,IT Equipment - General,Direct Marketers - Other,GPC
Statement 18/06/2016 - 18/07/2016,C&YPS-Non Delegated,Amazon UK Retail,09/07/2016,14.74,IT Equipment - General,Direct Marketers - Other,GPC
Statement 18/06/2016 - 18/07/2016,C&YPS-Non Delegated,Amazon UK Retail,21/06/2016,28.84,Other Expenditure - General,Direct Marketers - Other,GPC
Statement 18/06/2016 - 18/07/2016,C&YPS-Non Delegated,Amazon UK Retail,30/06/2016,12.00,Other Expenditure - General,Direct Marketers - Other,GPC
Statement 18/06/2016 - 18/07/2016,C&YPS-Non Delegated,Amazon UK Retail,11/07/2016,35.83,Other Expenditure - General,Direct Marketers - Other,GPC
Statement 18/06/2016 - 18/07/2016,C&YPS-Non Delegated,Amazon UK Retail,08/07/2016,9.11,Stationery - General,Direct Marketers - Other,GPC
Statement 18/06/2016 - 18/07/2016,C&YPS-Non Delegated,Amazon UK Retail,13/07/2016,22.09,Stationery - General,Direct Marketers - Other,GPC
Statement 18/06/2016 - 18/07/2016,C&YPS-Non Delegated,Amazon UK Retail,24/06/2016,25.19,Training Expenses - General,Direct Marketers - Other,GPC
Statement 18/06/2016 - 18/07/2016,C&YPS-Non Delegated,ARGOS,06/07/2016,254.97,Materials - General,Discount Stores,GPC
Statement 18/06/2016 - 18/07/2016,C&YPS-Non Delegated,ARGOS DIRECT,17/06/2016,199.99,Materials - General,Discount Stores,GPC
Statement 18/06/2016 - 18/07/2016,C&YPS-Non Delegated,ARGOS DIRECT,17/06/2016,23.92,Materials - General,Discount Stores,GPC
Statement 18/06/2016 - 18/07/2016,C&YPS-Non Delegated,ARGOS DIRECT,17/06/2016,72.92,Materials - General,Discount Stores,GPC
Statement 18/06/2016 - 18/07/2016,C&YPS-Non Delegated,ARGOS DIRECT,17/06/2016,309.98,Materials - General,Discount Stores,GPC
Statement 18/06/2016 - 18/07/2016,C&YPS-Non Delegated,ARGOS LTD,08/07/2016,100.00,Furniture - General,Discount Stores,GPC
Statement 18/06/2016 - 18/07/2016,C&YPS-Non Delegated,ARGOS LTD,20/06/2016,12.99,Materials - General,Discount Stores,GPC
Statement 18/06/2016 - 18/07/2016,C&YPS-Non Delegated,ARGOS LTD,21/06/2016,19.99,Materials - General,Discount Stores,GPC
Statement 18/06/2016 - 18/07/2016,C&YPS-Non Delegated,ARGOS RETAIL GROUP,21/06/2016,16.94,Materials - General,Discount Stores,GPC
Statement 18/06/2016 - 18/07/2016,C&YPS-Non Delegated,ARRIVA MID TRAVEL,15/07/2016,65.00,Other Equipment & Materials - General,"Bus Lines, Charters, Tour Buses",GPC
Statement 18/06/2016 - 18/07/2016,C&YPS-Non Delegated,ASDA STORES 4477,27/06/2016,5.23,Provisions - General,"Grocery Stores, Supermarkets",GPC
Statement 18/06/2016 - 18/07/2016,C&YPS-Non Delegated,ASDA SUPERSTORE,17/06/2016,8.00,Cleaning Materials - General,"Grocery Stores, Supermarkets",GPC
Statement 18/06/2016 - 18/07/2016,C&YPS-Non Delegated,ASDA SUPERSTORE,29/06/2016,20.24,Materials - General,"Grocery Stores, Supermarkets",GPC
Statement 18/06/2016 - 18/07/2016,C&YPS-Non Delegated,ASDA SUPERSTORE,06/07/2016,48.00,Materials - General,"Grocery Stores, Supermarkets",GPC
Statement 18/06/2016 - 18/07/2016,C&YPS-Non Delegated,ASDA SUPERSTORE,12/07/2016,9.06,Materials - General,"Grocery Stores, Supermarkets",GPC
Statement 18/06/2016 - 18/07/2016,C&YPS-Non Delegated,ASDA SUPERSTORE,27/06/2016,39.83,Other Expenditure - General,"Grocery Stores, Supermarkets",GPC
Statement 18/06/2016 - 18/07/2016,C&YPS-Non Delegated,ASDA SUPERSTORE,17/06/2016,121.77,Provisions - General,"Grocery Stores, Supermarkets",GPC
Statement 18/06/2016 - 18/07/2016,C&YPS-Non Delegated,ASDA SUPERSTORE,28/06/2016,103.38,Provisions - General,"Grocery Stores, Supermarkets",GPC
Statement 18/06/2016 - 18/07/2016,C&YPS-Non Delegated,ASDA SUPERSTORE,08/07/2016,184.28,Provisions - General,"Grocery Stores, Supermarkets",GPC
Statement 18/06/2016 - 18/07/2016,C&YPS-Non Delegated,ASDA SUPERSTORE,14/07/2016,77.23,Provisions - General,"Grocery Stores, Supermarkets",GPC
Statement 18/06/2016 - 18/07/2016,C&YPS-Non Delegated,B&M Retail,28/06/2016,9.56,Provisions - General,Discount Stores,GPC
Statement 18/06/2016 - 18/07/2016,C&YPS-Non Delegated,B&M Retail,14/07/2016,10.28,Provisions - General,Discount Stores,GPC
Statement 18/06/2016 - 18/07/2016,C&YPS-Non Delegated,B&M RETAIL LTD,13/07/2016,2.00,Books - General,Discount Stores,GPC
Statement 18/06/2016 - 18/07/2016,C&YPS-Non Delegated,BAKERS WASTE SERVICES,22/06/2016,156.00,Other Equipment & Materials - General,Business Services-Not Elsewhere Classified,GPC
Statement 18/06/2016 - 18/07/2016,C&YPS-Non Delegated,BT BILL PAYMENT 2,17/06/2016,66.90,Telephones - General,Telecommunication Equipment Including Telephone Sa,GPC
Statement 18/06/2016 - 18/07/2016,C&YPS-Non Delegated,BT BILL PAYMENT 2,22/06/2016,86.53,Telephones - General,Telecommunication Equipment Including Telephone Sa,GPC
Statement 18/06/2016 - 18/07/2016,C&YPS-Non Delegated,BT BILL PAYMENT 2,12/07/2016,55.89,Telephones - General,Telecommunication Equipment Including Telephone Sa,GPC
Statement 18/06/2016 - 18/07/2016,C&YPS-Non Delegated,BT BILL PAYMENT 2,12/07/2016,57.32,Telephones - General,Telecommunication Equipment Including Telephone Sa,GPC
Statement 18/06/2016 - 18/07/2016,C&YPS-Non Delegated,BT BILL PAYMENT 2,12/07/2016,57.35,Telephones - General,Telecommunication Equipment Including Telephone Sa,GPC
Statement 18/06/2016 - 18/07/2016,C&YPS-Non Delegated,BT BILL PAYMENT 2,12/07/2016,55.89,Telephones - General,Telecommunication Equipment Including Telephone Sa,GPC
Statement 18/06/2016 - 18/07/2016,C&YPS-Non Delegated,CANDI GIFTS BASKETWARE,27/06/2016,36.89,Contribns from Other Bodies - General,"Stationary, Office Supplies, Printing and Writing",GPC
Statement 18/06/2016 - 18/07/2016,C&YPS-Non Delegated,CARPET CUTS,16/06/2016,375.00,Materials - General,Floor Coverings   Stores,GPC
Statement 18/06/2016 - 18/07/2016,C&YPS-Non Delegated,CENTRAL CO-OP RETA,06/07/2016,3.05,Materials - General,Department Stores,GPC
Statement 18/06/2016 - 18/07/2016,C&YPS-Non Delegated,CENTRAL ENG COOP,15/07/2016,6.23,Materials - General,Department Stores,GPC
Statement 18/06/2016 - 18/07/2016,C&YPS-Non Delegated,CENTRAL ENG COOP,21/06/2016,5.45,Other Equipment & Materials - General,Department Stores,GPC
Statement 18/06/2016 - 18/07/2016,C&YPS-Non Delegated,CENTRAL ENG COOP,07/07/2016,29.65,Other Equipment & Materials - General,Department Stores,GPC
Statement 18/06/2016 - 18/07/2016,C&YPS-Non Delegated,CENTRAL HOTEL,07/07/2016,135.00,Training Expenses - General,"Lodging-Hotels, Motels, Resorts",GPC
Statement 18/06/2016 - 18/07/2016,C&YPS-Non Delegated,CHARNWOOD BOROUGH COUNCI,30/06/2016,4.90,Other Equipment & Materials - General,Automobile Parking Lots and Garages,GPC
Statement 18/06/2016 - 18/07/2016,C&YPS-Non Delegated,CHARNWOOD BOROUGH COUNCI,30/06/2016,4.90,Public Transport -  Staff - General,Automobile Parking Lots and Garages,GPC
Statement 18/06/2016 - 18/07/2016,C&YPS-Non Delegated,COSTA COFFEE,22/06/2016,2.55,Subsistence - General,Fast-Food Restaurants (Quick Payment Service Pilot,GPC
Statement 18/06/2016 - 18/07/2016,C&YPS-Non Delegated,CURRYS ONLINE,22/06/2016,143.94,Materials - General,"RADIO, TELEVISION, AND STEREO STORES (ELECTRONIC STORES)",GPC
Statement 18/06/2016 - 18/07/2016,C&YPS-Non Delegated,CURRYS SUPERSTORE,23/06/2016,13.33,Other Equipment & Materials - General,"RADIO, TELEVISION, AND STEREO STORES (ELECTRONIC STORES)",GPC
Statement 18/06/2016 - 18/07/2016,C&YPS-Non Delegated,DOLPHIN HOUSE,29/06/2016,-139.00,Subsistence - General,"Lodging-Hotels, Motels, Resorts",GPC
Statement 18/06/2016 - 18/07/2016,C&YPS-Non Delegated,DUNELM LTD,30/06/2016,8.56,Subsistence - General,"Drapery, Window Coverings, and Upholstery Stores",GPC
Statement 18/06/2016 - 18/07/2016,C&YPS-Non Delegated,DVLA VEHICLE TAX,07/07/2016,167.50,Road Licences - General,Government Services-Not Elsewhere Classified,GPC
Statement 18/06/2016 - 18/07/2016,C&YPS-Non Delegated,DVLA VEHICLE TAX,23/06/2016,167.50,Training Expenses - General,Government Services-Not Elsewhere Classified,GPC
Statement 18/06/2016 - 18/07/2016,C&YPS-Non Delegated,EAST MIDLANDS TRAI,08/07/2016,31.30,Other Equipment & Materials - General,Passenger Railways,GPC
Statement 18/06/2016 - 18/07/2016,C&YPS-Non Delegated,EAST MIDLANDS TRAI,15/07/2016,33.50,Other Equipment & Materials - General,Passenger Railways,GPC
Statement 18/06/2016 - 18/07/2016,C&YPS-Non Delegated,EASTMIDLANDSTRAINS,17/06/2016,102.20,Client/Volunteers - General,Passenger Railways,GPC
Statement 18/06/2016 - 18/07/2016,C&YPS-Non Delegated,EASTMIDLANDSTRAINS,17/06/2016,66.45,Other Expenditure - General,Passenger Railways,GPC
Statement 18/06/2016 - 18/07/2016,C&YPS-Non Delegated,ECL PLASTICS LTD,23/06/2016,64.95,Publicity/Marketing - General,"Gift, Card, Novelty, and Souvenir Shops",GPC
Statement 18/06/2016 - 18/07/2016,C&YPS-Non Delegated,ESPO,30/06/2016,120.25,Stationery - General,Government Services-Not Elsewhere Classified,GPC
Statement 18/06/2016 - 18/07/2016,C&YPS-Non Delegated,ESPO,30/06/2016,17.64,Stationery - General,Government Services-Not Elsewhere Classified,GPC
Statement 18/06/2016 - 18/07/2016,C&YPS-Non Delegated,FOREIGN EXCHANGE FEE,15/07/2016,0.33,Other Expenditure - General,Misc-Unknown,GPC
Statement 18/06/2016 - 18/07/2016,C&YPS-Non Delegated,FOREIGN EXCHANGE FEE,21/06/2016,1.13,Stationery - General,Misc-Unknown,GPC
Statement 18/06/2016 - 18/07/2016,C&YPS-Non Delegated,FUN FARM (LINCOLN) LTD,27/06/2016,5.49,Other Transfer Payments - Section 23 Grants,Child Care Services,GPC
Statement 18/06/2016 - 18/07/2016,C&YPS-Non Delegated,FUN FARM (LINCOLN) LTD,12/07/2016,5.40,Other Transfer Payments - Section 23 Grants,Child Care Services,GPC
Statement 18/06/2016 - 18/07/2016,C&YPS-Non Delegated,FUN FARM (LINCOLN) LTD,12/07/2016,5.49,Other Transfer Payments - Section 23 Grants,Child Care Services,GPC
Statement 18/06/2016 - 18/07/2016,C&YPS-Non Delegated,FUSION LOUGHBOROUGH LE,21/06/2016,5.00,Subscriptions - General,"Membership Clubs (Sports, Recreation, Athletic), C",GPC
Statement 18/06/2016 - 18/07/2016,C&YPS-Non Delegated,FUSION LOUGHBOROUGH LE,01/07/2016,3.00,Subscriptions - General,"Membership Clubs (Sports, Recreation, Athletic), C",GPC
Statement 18/06/2016 - 18/07/2016,C&YPS-Non Delegated,FUSION LOUGHBOROUGH LE,01/07/2016,5.00,Subscriptions - General,"Membership Clubs (Sports, Recreation, Athletic), C",GPC
Statement 18/06/2016 - 18/07/2016,C&YPS-Non Delegated,FUSION LOUGHBOROUGH LE,01/07/2016,5.00,Subscriptions - General,"Membership Clubs (Sports, Recreation, Athletic), C",GPC
Statement 18/06/2016 - 18/07/2016,C&YPS-Non Delegated,GO OUTDOORS,15/07/2016,57.86,Other Expenditure - General,Men's And Women's Clothing Stores,GPC
Statement 18/06/2016 - 18/07/2016,C&YPS-Non Delegated,GREEN MOTION LEICESTER,13/07/2016,69.65,Casual/Essential - General,Automobile Rental Agency,GPC
Statement 18/06/2016 - 18/07/2016,C&YPS-Non Delegated,GREEN MOTION LEICESTER,16/07/2016,140.00,Casual/Essential - General,Automobile Rental Agency,GPC
Statement 18/06/2016 - 18/07/2016,C&YPS-Non Delegated,GRO HM PASSPORT OFFICE,12/07/2016,23.40,Other Transfer Payments - Section 23 Grants,Government Services-Not Elsewhere Classified,GPC
Statement 18/06/2016 - 18/07/2016,C&YPS-Non Delegated,HEFT-HEARTLANDS HOSPIT,07/07/2016,378.00,Other Equipment & Materials - General,Hospitals,GPC
Statement 18/06/2016 - 18/07/2016,C&YPS-Non Delegated,HOMEBASE LTD,22/06/2016,7.59,R & M of Buildings - General,"Building Materials, Lumber Stores",GPC
Statement 18/06/2016 - 18/07/2016,C&YPS-Non Delegated,HOMEBASE LTD,23/06/2016,4.75,R & M of Buildings - General,"Building Materials, Lumber Stores",GPC
Statement 18/06/2016 - 18/07/2016,C&YPS-Non Delegated,HOMEBASE LTD,07/07/2016,4.17,R & M of Buildings - General,"Building Materials, Lumber Stores",GPC
Statement 18/06/2016 - 18/07/2016,C&YPS-Non Delegated,HOMEBASE LTD,09/07/2016,7.12,R & M of Buildings - General,"Building Materials, Lumber Stores",GPC
Statement 18/06/2016 - 18/07/2016,C&YPS-Non Delegated,ILSH MEDIA LIMITED,14/07/2016,177.60,Recruitment Advertising - General,Advertising Services,GPC
Statement 18/06/2016 - 18/07/2016,C&YPS-Non Delegated,J W PEPPER AND SON INC,20/06/2016,40.93,Stationery - General,"Music Stores-Musical Instruments, Pianos, Sheet Mu",GPC
Statement 18/06/2016 - 18/07/2016,C&YPS-Non Delegated,JEWSON 3663,07/07/2016,32.30,R & M of Buildings - General,"Building Materials, Lumber Stores",GPC
Statement 18/06/2016 - 18/07/2016,C&YPS-Non Delegated,JEWSON 3663,07/07/2016,24.20,R & M of Buildings - General,"Building Materials, Lumber Stores",GPC
Statement 18/06/2016 - 18/07/2016,C&YPS-Non Delegated,LEIC CITY COUNCIL,21/06/2016,13.00,Other Transfer Payments - Section 23 Grants,Government Services-Not Elsewhere Classified,GPC
Statement 18/06/2016 - 18/07/2016,C&YPS-Non Delegated,LEIC CITY COUNCIL,07/07/2016,23.00,Other Transfer Payments - Section 23 Grants,Government Services-Not Elsewhere Classified,GPC
Statement 18/06/2016 - 18/07/2016,C&YPS-Non Delegated,LEIC CITY COUNCIL,07/07/2016,23.00,Other Transfer Payments - Section 23 Grants,Government Services-Not Elsewhere Classified,GPC
Statement 18/06/2016 - 18/07/2016,C&YPS-Non Delegated,LEIC CITY COUNCIL,07/07/2016,23.00,Other Transfer Payments - Section 23 Grants,Government Services-Not Elsewhere Classified,GPC
Statement 18/06/2016 - 18/07/2016,C&YPS-Non Delegated,LEIC CITY COUNCIL,07/07/2016,23.00,Other Transfer Payments - Section 23 Grants,Government Services-Not Elsewhere Classified,GPC
Statement 18/06/2016 - 18/07/2016,C&YPS-Non Delegated,LEIC CITY COUNCIL,28/06/2016,26.67,Subscriptions - General,Government Services-Not Elsewhere Classified,GPC
Statement 18/06/2016 - 18/07/2016,C&YPS-Non Delegated,LEIC CITY COUNCIL,28/06/2016,16.00,Subscriptions - General,Government Services-Not Elsewhere Classified,GPC
Statement 18/06/2016 - 18/07/2016,C&YPS-Non Delegated,LEICESTERSHIRE C COUNC,17/06/2016,11.00,Other Expenditure - General,Government Services-Not Elsewhere Classified,GPC
Statement 18/06/2016 - 18/07/2016,C&YPS-Non Delegated,LEICESTERSHIRE C COUNC,29/06/2016,5.00,Other Expenditure - General,Government Services-Not Elsewhere Classified,GPC
Statement 18/06/2016 - 18/07/2016,C&YPS-Non Delegated,LEICESTERSHIRE C COUNC,29/06/2016,11.00,Other Expenditure - General,Government Services-Not Elsewhere Classified,GPC
Statement 18/06/2016 - 18/07/2016,C&YPS-Non Delegated,LIDL UK,23/06/2016,121.14,Provisions - General,"Grocery Stores, Supermarkets",GPC
Statement 18/06/2016 - 18/07/2016,C&YPS-Non Delegated,LIDL UK,27/06/2016,7.04,Provisions - General,"Grocery Stores, Supermarkets",GPC
Statement 18/06/2016 - 18/07/2016,C&YPS-Non Delegated,LINKEDIN-281 0819944,20/06/2016,227.94,Recruitment Advertising - General,Continuity/Subscription Merchants,GPC
Statement 18/06/2016 - 18/07/2016,C&YPS-Non Delegated,LINKEDIN-283 9985504,06/07/2016,227.94,Recruitment Advertising - General,Continuity/Subscription Merchants,GPC
Statement 18/06/2016 - 18/07/2016,C&YPS-Non Delegated,LSPS,22/06/2016,120.83,Other Equipment & Materials - General,Business Services-Not Elsewhere Classified,GPC
Statement 18/06/2016 - 18/07/2016,C&YPS-Non Delegated,MAPLIN--LEICESTER LE1,15/07/2016,39.99,Materials - General,"RADIO, TELEVISION, AND STEREO STORES (ELECTRONIC STORES)",GPC
Statement 18/06/2016 - 18/07/2016,C&YPS-Non Delegated,MASSARELLA RESTAUR,23/06/2016,9.00,Other Expenditure - General,"Eating Places, Restaurants",GPC
Statement 18/06/2016 - 18/07/2016,C&YPS-Non Delegated,MCDONALDS,17/06/2016,2.49,Other Expenditure - General,"Eating Places, Restaurants",GPC
Statement 18/06/2016 - 18/07/2016,C&YPS-Non Delegated,MCDONALDS,21/06/2016,5.26,Other Expenditure - General,Fast-Food Restaurants (Quick Payment Service Pilot,GPC
Statement 18/06/2016 - 18/07/2016,C&YPS-Non Delegated,MCDONALDS,04/07/2016,2.98,Other Expenditure - General,Fast-Food Restaurants (Quick Payment Service Pilot,GPC
Statement 18/06/2016 - 18/07/2016,C&YPS-Non Delegated,MCDONALDS,24/06/2016,1.39,Subsistence - General,"Eating Places, Restaurants",GPC
Statement 18/06/2016 - 18/07/2016,C&YPS-Non Delegated,MCDONALDS,04/07/2016,1.39,Subsistence - General,"Eating Places, Restaurants",GPC
Statement 18/06/2016 - 18/07/2016,C&YPS-Non Delegated,MCDONALDS,06/07/2016,3.59,Subsistence - General,Fast-Food Restaurants (Quick Payment Service Pilot,GPC
Statement 18/06/2016 - 18/07/2016,C&YPS-Non Delegated,MCDONALDS,07/07/2016,4.57,Subsistence - General,"Eating Places, Restaurants",GPC
Statement 18/06/2016 - 18/07/2016,C&YPS-Non Delegated,MCDONALDS,15/07/2016,1.59,Subsistence - General,Fast-Food Restaurants (Quick Payment Service Pilot,GPC
Statement 18/06/2016 - 18/07/2016,C&YPS-Non Delegated,MUSICNOTES.COM,14/07/2016,11.92,Other Expenditure - General,"Music Stores-Musical Instruments, Pianos, Sheet Mu",GPC
Statement 18/06/2016 - 18/07/2016,C&YPS-Non Delegated,NANDOS (LOUGHBOROUGH),28/06/2016,16.50,Other Equipment & Materials - General,"Eating Places, Restaurants",GPC
Statement 18/06/2016 - 18/07/2016,C&YPS-Non Delegated,NCP LIMITED,01/07/2016,4.20,Public Transport -  Staff - General,Automobile Parking Lots and Garages,GPC
Statement 18/06/2016 - 18/07/2016,C&YPS-Non Delegated,NEF CONSULTING LTD,28/06/2016,567.00,Training Expenses - General,Business and Secretarial Schools,GPC
Statement 18/06/2016 - 18/07/2016,C&YPS-Non Delegated,NSPCC PUBLICATIONS,14/07/2016,19.00,Other Equipment & Materials - General,Charitable and Social Service Organizations,GPC
Statement 18/06/2016 - 18/07/2016,C&YPS-Non Delegated,PAYPAL  FREEDOMPROG,28/06/2016,79.35,Training Expenses - General,Professional Services-Not Elsewhere Classified,GPC
Statement 18/06/2016 - 18/07/2016,C&YPS-Non Delegated,POST OFFICE COUNTER,04/07/2016,39.60,Postal Services - General,Postage Stamps,GPC
Statement 18/06/2016 - 18/07/2016,C&YPS-Non Delegated,POST OFFICE COUNTER,04/07/2016,10.47,Postal Services - General,Postage Stamps,GPC
Statement 18/06/2016 - 18/07/2016,C&YPS-Non Delegated,POST OFFICE COUNTER,06/07/2016,110.00,Postal Services - General,Postage Stamps,GPC
Statement 18/06/2016 - 18/07/2016,C&YPS-Non Delegated,POUNDLAND LTD 1545,14/07/2016,37.00,Materials - General,Discount Stores,GPC
Statement 18/06/2016 - 18/07/2016,C&YPS-Non Delegated,PREMIER INN44523630,20/06/2016,74.00,Other Expenditure - General,PREMIER TRAVEL,GPC
Statement 18/06/2016 - 18/07/2016,C&YPS-Non Delegated,PREMIERMEETINGS.CO.UK,28/06/2016,24.00,Other Equipment & Materials - General,Business Services-Not Elsewhere Classified,GPC
Statement 18/06/2016 - 18/07/2016,C&YPS-Non Delegated,SAINSBURY'S S/MKT,23/06/2016,2.70,Materials - General,"Grocery Stores, Supermarkets",GPC
Statement 18/06/2016 - 18/07/2016,C&YPS-Non Delegated,SAINSBURY'S S/MKT,28/06/2016,9.06,Provisions - General,"Grocery Stores, Supermarkets",GPC
Statement 18/06/2016 - 18/07/2016,C&YPS-Non Delegated,SAINSBURY'S S/MKT,21/06/2016,6.85,Subsistence - General,"Grocery Stores, Supermarkets",GPC
Statement 18/06/2016 - 18/07/2016,C&YPS-Non Delegated,SAINSBURYS S/MKTS,27/06/2016,5.04,Materials - General,"Grocery Stores, Supermarkets",GPC
Statement 18/06/2016 - 18/07/2016,C&YPS-Non Delegated,SAINSBURYS S/MKTS,22/06/2016,8.23,Provisions - General,"Grocery Stores, Supermarkets",GPC
Statement 18/06/2016 - 18/07/2016,C&YPS-Non Delegated,SAINSBURYS S/MKTS,28/06/2016,23.00,Provisions - General,"Grocery Stores, Supermarkets",GPC
Statement 18/06/2016 - 18/07/2016,C&YPS-Non Delegated,SAINSBURYS S/MKTS,07/07/2016,3.00,R&M of Vehicles-Non Contract - General,Service Stations (with or without Ancillary Servic,GPC
Statement 18/06/2016 - 18/07/2016,C&YPS-Non Delegated,SAINSBURYS S/MKTS,07/07/2016,3.30,R&M of Vehicles-Non Contract - General,Service Stations (with or without Ancillary Servic,GPC
Statement 18/06/2016 - 18/07/2016,C&YPS-Non Delegated,SAINSBURYS S/MKTS,14/07/2016,12.67,Stationery - General,"Grocery Stores, Supermarkets",GPC
Statement 18/06/2016 - 18/07/2016,C&YPS-Non Delegated,SPORTSDIRECT 65,01/07/2016,64.48,Other Expenditure - General,Sporting Goods Stores,GPC
Statement 18/06/2016 - 18/07/2016,C&YPS-Non Delegated,SPORTSDIRECT.COM,29/06/2016,66.66,IT Equipment - General,Sporting Goods Stores,GPC
Statement 18/06/2016 - 18/07/2016,C&YPS-Non Delegated,STAPLES UK,17/06/2016,11.25,Stationery - General,"Stationery, Office, and School Supply Stores",GPC
Statement 18/06/2016 - 18/07/2016,C&YPS-Non Delegated,STAPLES UK,20/06/2016,5.00,Stationery - General,"Stationery, Office, and School Supply Stores",GPC
Statement 18/06/2016 - 18/07/2016,C&YPS-Non Delegated,STAPLES UK,22/06/2016,45.00,Stationery - General,"Stationery, Office, and School Supply Stores",GPC
Statement 18/06/2016 - 18/07/2016,C&YPS-Non Delegated,STAPLES UK,27/06/2016,20.99,Stationery - General,"Stationery, Office, and School Supply Stores",GPC
Statement 18/06/2016 - 18/07/2016,C&YPS-Non Delegated,STORE FINANCIAL SERVIC,17/06/2016,50.00,Materials - General,Miscellaneous and Specialty Retail Stores,GPC
Statement 18/06/2016 - 18/07/2016,C&YPS-Non Delegated,STORE FINANCIAL SERVIC,17/06/2016,50.00,Materials - General,Miscellaneous and Specialty Retail Stores,GPC
Statement 18/06/2016 - 18/07/2016,C&YPS-Non Delegated,STORE FINANCIAL SERVIC,17/06/2016,50.00,Materials - General,Miscellaneous and Specialty Retail Stores,GPC
Statement 18/06/2016 - 18/07/2016,C&YPS-Non Delegated,STORE FINANCIAL SERVIC,20/06/2016,50.00,Materials - General,Miscellaneous and Specialty Retail Stores,GPC
Statement 18/06/2016 - 18/07/2016,C&YPS-Non Delegated,STORE FINANCIAL SERVIC,20/06/2016,50.00,Materials - General,Miscellaneous and Specialty Retail Stores,GPC
Statement 18/06/2016 - 18/07/2016,C&YPS-Non Delegated,STORE FINANCIAL SERVIC,20/06/2016,90.00,Materials - General,Miscellaneous and Specialty Retail Stores,GPC
Statement 18/06/2016 - 18/07/2016,C&YPS-Non Delegated,STORE FINANCIAL SERVIC,20/06/2016,10.00,Materials - General,Miscellaneous and Specialty Retail Stores,GPC
Statement 18/06/2016 - 18/07/2016,C&YPS-Non Delegated,STORE FINANCIAL SERVIC,20/06/2016,10.00,Materials - General,Miscellaneous and Specialty Retail Stores,GPC
Statement 18/06/2016 - 18/07/2016,C&YPS-Non Delegated,SUBWAY,21/06/2016,3.00,Subsistence - General,"Eating Places, Restaurants",GPC
Statement 18/06/2016 - 18/07/2016,C&YPS-Non Delegated,SUBWAY,08/07/2016,3.00,Subsistence - General,"Eating Places, Restaurants",GPC
Statement 18/06/2016 - 18/07/2016,C&YPS-Non Delegated,SUBWAY,13/07/2016,4.38,Subsistence - General,"Eating Places, Restaurants",GPC
Statement 18/06/2016 - 18/07/2016,C&YPS-Non Delegated,SURVEYMONKEY.COM,01/07/2016,190.83,Communications Equipment - General,Computer Network/Information Services,GPC
Statement 18/06/2016 - 18/07/2016,C&YPS-Non Delegated,TAXI FARE BY VERIFONE,11/07/2016,10.82,Public Transport -  Staff - General,Taxicabs and Limousines,GPC
Statement 18/06/2016 - 18/07/2016,C&YPS-Non Delegated,TESCO STORE 2849,21/06/2016,5.53,Materials - General,"Grocery Stores, Supermarkets",GPC
Statement 18/06/2016 - 18/07/2016,C&YPS-Non Delegated,TESCO STORE 2849,30/06/2016,16.99,Materials - General,"Grocery Stores, Supermarkets",GPC
Statement 18/06/2016 - 18/07/2016,C&YPS-Non Delegated,TESCO STORE 2849,30/06/2016,11.04,Materials - General,"Grocery Stores, Supermarkets",GPC
Statement 18/06/2016 - 18/07/2016,C&YPS-Non Delegated,TESCO STORES 5182,14/07/2016,20.52,Provisions - General,"Grocery Stores, Supermarkets",GPC
Statement 18/06/2016 - 18/07/2016,C&YPS-Non Delegated,TESCO STORES 5902,06/07/2016,7.68,Provisions - General,"Grocery Stores, Supermarkets",GPC
Statement 18/06/2016 - 18/07/2016,C&YPS-Non Delegated,TESCO STORES 6135,20/06/2016,117.00,Other Transfer Payments - Section 23 Grants,"Grocery Stores, Supermarkets",GPC
Statement 18/06/2016 - 18/07/2016,C&YPS-Non Delegated,TESCO STORES 6782,30/06/2016,8.02,Materials - General,"Grocery Stores, Supermarkets",GPC
Statement 18/06/2016 - 18/07/2016,C&YPS-Non Delegated,TESCO-STORES 6573,20/06/2016,8.00,Materials - General,"Grocery Stores, Supermarkets",GPC
Statement 18/06/2016 - 18/07/2016,C&YPS-Non Delegated,TESCO-STORES-6195,22/06/2016,8.06,Materials - General,"Grocery Stores, Supermarkets",GPC
Statement 18/06/2016 - 18/07/2016,C&YPS-Non Delegated,THE BOOK PEOPLE,30/06/2016,109.84,Books - General,Book Stores,GPC
Statement 18/06/2016 - 18/07/2016,C&YPS-Non Delegated,THE BOOK PEOPLE,12/07/2016,55.12,Books - General,Book Stores,GPC
Statement 18/06/2016 - 18/07/2016,C&YPS-Non Delegated,THE POST OFFICE,11/07/2016,150.00,Postal Services - General,Postage Stamps,GPC
Statement 18/06/2016 - 18/07/2016,C&YPS-Non Delegated,THE PRINCE OF WALES,01/07/2016,90.00,Training Expenses - General,"Drinking Places (Alcoholic Beverages)-Bars, Tavern",GPC
Statement 18/06/2016 - 18/07/2016,C&YPS-Non Delegated,THE WORKS,13/07/2016,5.00,Books - General,Discount Stores,GPC
Statement 18/06/2016 - 18/07/2016,C&YPS-Non Delegated,THE WORKS,27/06/2016,27.18,Materials - General,Discount Stores,GPC
Statement 18/06/2016 - 18/07/2016,C&YPS-Non Delegated,TOUCH-NEEDS LTD,06/07/2016,48.33,Other Equipment & Materials - General,Laboratory/Medical/Dental/Ophthalmic Hospital Equi,GPC
Statement 18/06/2016 - 18/07/2016,C&YPS-Non Delegated,TRAINLINE,20/06/2016,109.24,Casual/Essential - General,Passenger Railways,GPC
Statement 18/06/2016 - 18/07/2016,C&YPS-Non Delegated,TRAINLINE,22/06/2016,78.03,Casual/Essential - General,Passenger Railways,GPC
Statement 18/06/2016 - 18/07/2016,C&YPS-Non Delegated,TRAINLINE,20/06/2016,57.43,Other Transfer Payments - Section 23 Grants,Passenger Railways,GPC
Statement 18/06/2016 - 18/07/2016,C&YPS-Non Delegated,TRAINLINE,06/07/2016,233.89,Other Transfer Payments - Section 23 Grants,Passenger Railways,GPC
Statement 18/06/2016 - 18/07/2016,C&YPS-Non Delegated,TRAINLINE,06/07/2016,12.00,Other Transfer Payments - Section 23 Grants,Passenger Railways,GPC
Statement 18/06/2016 - 18/07/2016,C&YPS-Non Delegated,TRAINLINE,21/06/2016,11.26,Public Transport -  Staff - General,Passenger Railways,GPC
Statement 18/06/2016 - 18/07/2016,C&YPS-Non Delegated,TRAVELODGE WEBSITE,28/06/2016,131.90,Subsistence - General,Travelodge,GPC
Statement 18/06/2016 - 18/07/2016,C&YPS-Non Delegated,TVLICENSING.CO.UK,14/07/2016,145.50,Other Transfer Payments - Section 24,"Management, Consulting and Public Relations Servic",GPC
Statement 18/06/2016 - 18/07/2016,C&YPS-Non Delegated,TVLICENSING.CO.UK,24/06/2016,145.50,Schools Agency staff - Teaching Staff,"Management, Consulting and Public Relations Servic",GPC
Statement 18/06/2016 - 18/07/2016,C&YPS-Non Delegated,TVLICENSING.CO.UK,30/06/2016,145.50,Schools Agency staff - Teaching Staff,"Management, Consulting and Public Relations Servic",GPC
Statement 18/06/2016 - 18/07/2016,C&YPS-Non Delegated,UPT - HIGHCROSS LEICESTE,12/07/2016,4.17,Public Transport -  Staff - General,Professional Services-Not Elsewhere Classified,GPC
Statement 18/06/2016 - 18/07/2016,C&YPS-Non Delegated,UPT-EAST MIDLANDS TRN-LB,22/06/2016,11.50,Client/Volunteers - General,Professional Services-Not Elsewhere Classified,GPC
Statement 18/06/2016 - 18/07/2016,C&YPS-Non Delegated,W M MORRISON,27/06/2016,4.50,Other Expenditure - General,"Grocery Stores, Supermarkets",GPC
Statement 18/06/2016 - 18/07/2016,C&YPS-Non Delegated,WEST COAST TRAINS,11/07/2016,3.33,Public Transport -  Staff - General,Automobile Parking Lots and Garages,GPC
Statement 18/06/2016 - 18/07/2016,C&YPS-Non Delegated,WHETSTONE TRANSFER STA,11/07/2016,139.20,Other Expenditure - General,Government Services-Not Elsewhere Classified,GPC
Statement 18/06/2016 - 18/07/2016,C&YPS-Non Delegated,WILKO RETAIL LIMIT,04/07/2016,25.53,General Equipment - General,Household Appliance Stores,GPC
Statement 18/06/2016 - 18/07/2016,C&YPS-Non Delegated,WILKO RETAIL LIMIT,09/07/2016,14.86,R & M of Buildings - General,Household Appliance Stores,GPC
Statement 18/06/2016 - 18/07/2016,C&YPS-Non Delegated,WILKO RETAIL LIMIT,09/07/2016,-4.95,R & M of Buildings - General,Household Appliance Stores,GPC
Statement 18/06/2016 - 18/07/2016,C&YPS-Non Delegated,WILKO.COM,12/07/2016,23.57,Other Equipment & Materials - General,Household Appliance Stores,GPC
Statement 18/06/2016 - 18/07/2016,C&YPS-Non Delegated,WM MORRISON 054,13/07/2016,3.00,Cleaning Materials - General,"Grocery Stores, Supermarkets",GPC
Statement 18/06/2016 - 18/07/2016,C&YPS-Non Delegated,WM MORRISON 054,05/07/2016,11.22,Other Equipment & Materials - General,"Grocery Stores, Supermarkets",GPC
Statement 18/06/2016 - 18/07/2016,C&YPS-Non Delegated,WM MORRISON 054,13/07/2016,57.50,Other Equipment & Materials - General,"Grocery Stores, Supermarkets",GPC
Statement 18/06/2016 - 18/07/2016,C&YPS-Non Delegated,WM MORRISON 054,13/07/2016,11.50,Other Equipment & Materials - General,"Grocery Stores, Supermarkets",GPC
Statement 18/06/2016 - 18/07/2016,C&YPS-Non Delegated,WM MORRISON 054,13/07/2016,19.80,Postal Services - General,"Grocery Stores, Supermarkets",GPC
Statement 18/06/2016 - 18/07/2016,C&YPS-Non Delegated,WM MORRISON 054,22/06/2016,4.46,Subsistence - General,"Grocery Stores, Supermarkets",GPC
Statement 18/06/2016 - 18/07/2016,C&YPS-Non Delegated,WP-WARWICKSHIRE CO,17/06/2016,10.64,Other Expenditure - General,Government Services-Not Elsewhere Classified,GPC
Statement 18/06/2016 - 18/07/2016,C&YPS-Non Delegated,WP-WARWICKSHIRE CO,17/06/2016,10.64,Other Expenditure - General,Government Services-Not Elsewhere Classified,GPC
Statement 18/06/2016 - 18/07/2016,C&YPS-Non Delegated,WWW.CITIZENCARD.COM,12/07/2016,15.00,Other Transfer Payments - Section 24,Government Services-Not Elsewhere Classified,GPC
Statement 18/06/2016 - 18/07/2016,C&YPS-Non Delegated,WWW.EDENRED.CO.UK,27/06/2016,241.87,Other Equipment & Materials - General,Business Services-Not Elsewhere Classified,GPC
Statement 18/06/2016 - 18/07/2016,C&YPS-Non Delegated,WWW.EDENRED.CO.UK,11/07/2016,200.00,Other Equipment & Materials - General,Business Services-Not Elsewhere Classified,GPC
Statement 18/06/2016 - 18/07/2016,C&YPS-Non Delegated,WWW.EDENRED.CO.UK,11/07/2016,128.07,Other Equipment & Materials - General,Business Services-Not Elsewhere Classified,GPC
Statement 18/06/2016 - 18/07/2016,C&YPS-Non Delegated,WWW.EDENRED.CO.UK,11/07/2016,200.00,Other Equipment & Materials - General,Business Services-Not Elsewhere Classified,GPC
Statement 18/06/2016 - 18/07/2016,C&YPS-Non Delegated,WWW.ICSA.ORG.UK,28/06/2016,180.00,Other Services - General,Membership Organizations-Not Elsewhere Classified,GPC
Statement 18/06/2016 - 18/07/2016,C&YPS-Non Delegated,WWW.ICSA.ORG.UK,28/06/2016,540.00,Training Expenses - General,Business and Secretarial Schools,GPC
Statement 18/06/2016 - 18/07/2016,C&YPS-Non Delegated,WWW.JOHNLEWIS.COM,23/06/2016,49.45,Materials - General,Department Stores,GPC
Statement 18/06/2016 - 18/07/2016,C&YPS-Non Delegated,WWW.MILKANDMORE.CO.UK,22/06/2016,10.92,Provisions - General,Continuity/Subscription Merchants,GPC
Statement 18/06/2016 - 18/07/2016,C&YPS-Non Delegated,WWW.MILKANDMORE.CO.UK,01/07/2016,9.40,Provisions - General,Continuity/Subscription Merchants,GPC
Statement 18/06/2016 - 18/07/2016,C&YPS-Non Delegated,WWW.MILKANDMORE.CO.UK,01/07/2016,14.04,Provisions - General,Continuity/Subscription Merchants,GPC
Statement 18/06/2016 - 18/07/2016,C&YPS-Non Delegated,WWW.MILKANDMORE.CO.UK,01/07/2016,4.68,Provisions - General,Continuity/Subscription Merchants,GPC
Statement 18/06/2016 - 18/07/2016,C&YPS-Non Delegated,WWW.MUSICROOM.COM,15/07/2016,22.59,Other Expenditure - General,"Music Stores-Musical Instruments, Pianos, Sheet Mu",GPC
Statement 18/06/2016 - 18/07/2016,C&YPS-Non Delegated,WWW.THELAPTOPPOWERSUPP,11/07/2016,24.16,Other Transfer Payments - Section 24,"Computers, Computer Peripheral Equipment, Software",GPC
Statement 18/06/2016 - 18/07/2016,C&YPS-Non Delegated,WWW.THEWORKS.CO.UK,30/06/2016,16.67,Stationery - General,Discount Stores,GPC
Statement 18/06/2016 - 18/07/2016,C&YPS-Non Delegated,WWW.TXTLOCAL.COM,20/06/2016,117.60,Schools Agency staff - Teaching Staff,"Management, Consulting and Public Relations Servic",GPC
Statement 18/06/2016 - 18/07/2016,C&YPS-Schools,ALDI,11/07/2016,7.47,Materials - General,"Grocery Stores, Supermarkets",GPC
Statement 18/06/2016 - 18/07/2016,C&YPS-Schools,Amazon UK Marketplace,28/06/2016,7.34,Books - General,Book Stores,GPC
Statement 18/06/2016 - 18/07/2016,C&YPS-Schools,Amazon UK Marketplace,28/06/2016,22.68,Books - General,Book Stores,GPC
Statement 18/06/2016 - 18/07/2016,C&YPS-Schools,Amazon UK Marketplace,29/06/2016,4.55,Books - General,Book Stores,GPC
Statement 18/06/2016 - 18/07/2016,C&YPS-Schools,Amazon UK Marketplace,07/07/2016,7.34,Books - General,Book Stores,GPC
Statement 18/06/2016 - 18/07/2016,C&YPS-Schools,Amazon UK Marketplace,07/07/2016,22.89,Books - General,Book Stores,GPC
Statement 18/06/2016 - 18/07/2016,C&YPS-Schools,Amazon UK Marketplace,07/07/2016,52.43,Books - General,Book Stores,GPC
Statement 18/06/2016 - 18/07/2016,C&YPS-Schools,Amazon UK Marketplace,29/06/2016,11.74,Materials - General,Miscellaneous and Specialty Retail Stores,GPC
Statement 18/06/2016 - 18/07/2016,C&YPS-Schools,Amazon UK Marketplace,07/07/2016,11.22,Materials - General,Miscellaneous and Specialty Retail Stores,GPC
Statement 18/06/2016 - 18/07/2016,C&YPS-Schools,Amazon UK Marketplace,08/07/2016,5.88,Materials - General,Miscellaneous and Specialty Retail Stores,GPC
Statement 18/06/2016 - 18/07/2016,C&YPS-Schools,Amazon UK Retail,01/07/2016,16.15,Other Expenditure - General,Direct Marketers - Other,GPC
Statement 18/06/2016 - 18/07/2016,C&YPS-Schools,AMAZON UK RETAIL AMAZON.C,01/07/2016,5.21,Materials - General,Miscellaneous and Specialty Retail Stores,GPC
Statement 18/06/2016 - 18/07/2016,C&YPS-Schools,AMAZON UK RETAIL AMAZON.C,02/07/2016,115.74,Materials - General,Miscellaneous and Specialty Retail Stores,GPC
Statement 18/06/2016 - 18/07/2016,C&YPS-Schools,ARGOS LEICESTER,10/07/2016,54.74,Materials - General,Discount Stores,GPC
Statement 18/06/2016 - 18/07/2016,C&YPS-Schools,ARGOS LEICESTER,11/07/2016,24.98,Materials - General,Discount Stores,GPC
Statement 18/06/2016 - 18/07/2016,C&YPS-Schools,ARGOS LTD,13/07/2016,28.49,Materials - General,Discount Stores,GPC
Statement 18/06/2016 - 18/07/2016,C&YPS-Schools,ASDA HOME SHOPPING,20/06/2016,73.90,Materials - General,"Grocery Stores, Supermarkets",GPC
Statement 18/06/2016 - 18/07/2016,C&YPS-Schools,ASDA HOME SHOPPING,27/06/2016,49.83,Materials - General,"Grocery Stores, Supermarkets",GPC
Statement 18/06/2016 - 18/07/2016,C&YPS-Schools,ASDA HOME SHOPPING,11/07/2016,79.23,Materials - General,"Grocery Stores, Supermarkets",GPC
Statement 18/06/2016 - 18/07/2016,C&YPS-Schools,ASDA HOME SHOPPING,11/07/2016,-5.01,Materials - General,"Grocery Stores, Supermarkets",GPC
Statement 18/06/2016 - 18/07/2016,C&YPS-Schools,ASDA SUPERSTORE,29/06/2016,63.48,Materials - General,"Grocery Stores, Supermarkets",GPC
Statement 18/06/2016 - 18/07/2016,C&YPS-Schools,B & Q 1043,01/07/2016,20.35,R & M of Buildings - General,"Building Materials, Lumber Stores",GPC
Statement 18/06/2016 - 18/07/2016,C&YPS-Schools,ESPO,28/06/2016,3.31,Other Expenditure - General,Government Services-Not Elsewhere Classified,GPC
Statement 18/06/2016 - 18/07/2016,C&YPS-Schools,ESPO,01/07/2016,255.53,Other Expenditure - General,Government Services-Not Elsewhere Classified,GPC
Statement 18/06/2016 - 18/07/2016,C&YPS-Schools,ESPO,13/07/2016,68.48,Other Expenditure - General,Government Services-Not Elsewhere Classified,GPC
Statement 18/06/2016 - 18/07/2016,C&YPS-Schools,GAME RETAIL LTD LEIC,26/06/2016,5.00,Materials - General,"Hobby, Toy, and Game Shops",GPC
Statement 18/06/2016 - 18/07/2016,C&YPS-Schools,GAME RETAIL LTD LEIC,06/07/2016,5.00,Materials - General,"Hobby, Toy, and Game Shops",GPC
Statement 18/06/2016 - 18/07/2016,C&YPS-Schools,POUNDWORLD RETAIL,10/07/2016,17.00,Materials - General,Discount Stores,GPC
Statement 18/06/2016 - 18/07/2016,C&YPS-Schools,SAINSBURY'S S/MKT,06/07/2016,43.81,Materials - General,"Grocery Stores, Supermarkets",GPC
Statement 18/06/2016 - 18/07/2016,C&YPS-Schools,WAITROSE 141,11/07/2016,2.50,Materials - General,"Grocery Stores, Supermarkets",GPC
Statement 18/06/2016 - 18/07/2016,Chief Executive,Amazon UK Marketplace,02/07/2016,2.10,Books - General,Book Stores,GPC
Statement 18/06/2016 - 18/07/2016,Chief Executive,Amazon UK Marketplace,20/06/2016,5.44,Materials - General,Miscellaneous and Specialty Retail Stores,GPC
Statement 18/06/2016 - 18/07/2016,Chief Executive,Amazon UK Marketplace,20/06/2016,22.76,Materials - General,Miscellaneous and Specialty Retail Stores,GPC
Statement 18/06/2016 - 18/07/2016,Chief Executive,Amazon UK Marketplace,23/06/2016,5.98,Materials - General,Miscellaneous and Specialty Retail Stores,GPC
Statement 18/06/2016 - 18/07/2016,Chief Executive,Amazon UK Marketplace,23/06/2016,30.00,Materials - General,Miscellaneous and Specialty Retail Stores,GPC
Statement 18/06/2016 - 18/07/2016,Chief Executive,Amazon UK Marketplace,02/07/2016,2.15,Materials - General,Miscellaneous and Specialty Retail Stores,GPC
Statement 18/06/2016 - 18/07/2016,Chief Executive,Amazon UK Marketplace,04/07/2016,7.15,Other Expenditure - General,Miscellaneous and Specialty Retail Stores,GPC
Statement 18/06/2016 - 18/07/2016,Chief Executive,Amazon UK Marketplace,06/07/2016,14.30,Other Expenditure - General,Miscellaneous and Specialty Retail Stores,GPC
Statement 18/06/2016 - 18/07/2016,Chief Executive,Amazon UK Marketplace,11/07/2016,8.80,Other Expenditure - General,Miscellaneous and Specialty Retail Stores,GPC
Statement 18/06/2016 - 18/07/2016,Chief Executive,Amazon UK Marketplace,04/07/2016,8.32,Stationery - General,Book Stores,GPC
Statement 18/06/2016 - 18/07/2016,Chief Executive,Amazon UK Marketplace,13/07/2016,12.92,Stationery - General,Book Stores,GPC
Statement 18/06/2016 - 18/07/2016,Chief Executive,Amazon UK Retail,12/07/2016,57.00,Books - General,Direct Marketers - Other,GPC
Statement 18/06/2016 - 18/07/2016,Chief Executive,AMAZON UK RETAIL AMAZON.C,08/07/2016,48.69,Stationery - General,Miscellaneous and Specialty Retail Stores,GPC
Statement 18/06/2016 - 18/07/2016,Chief Executive,CARTRIDGE SAVE,11/07/2016,455.63,Stationery - General,"Stationary, Office Supplies, Printing and Writing",GPC
Statement 18/06/2016 - 18/07/2016,Chief Executive,CENTRAL ENG COOP,27/06/2016,16.43,Materials - General,Department Stores,GPC
Statement 18/06/2016 - 18/07/2016,Chief Executive,CHARNWOOD BOROUGH COUNCI,30/06/2016,1.60,Casual/Essential - General,Automobile Parking Lots and Garages,GPC
Statement 18/06/2016 - 18/07/2016,Chief Executive,DESTINET LTD,29/06/2016,174.00,Publicity/Marketing - General,Advertising Services,GPC
Statement 18/06/2016 - 18/07/2016,Chief Executive,FENWICK LTD LEICESTER,20/06/2016,28.75,Other Expenditure - General,Department Stores,GPC
Statement 18/06/2016 - 18/07/2016,Chief Executive,GOTOCITRIX.COM,08/07/2016,29.00,IT Equipment - Licences,Continuity/Subscription Merchants,GPC
Statement 18/06/2016 - 18/07/2016,Chief Executive,LOVE2SHOP.CO.UK,11/07/2016,204.96,Other Expenditure - General,"Civic, Social, and Fraternal Associations",GPC
Statement 18/06/2016 - 18/07/2016,Chief Executive,MCV FRANCHISING LTD,28/06/2016,60.00,Other Expenditure - General,Car Washes,GPC
Statement 18/06/2016 - 18/07/2016,Chief Executive,MOTO CHERWELL VALLEY E,07/07/2016,5.99,Subsistence - General,"Eating Places, Restaurants",GPC
Statement 18/06/2016 - 18/07/2016,Chief Executive,NCP LIMITED,08/07/2016,7.50,Casual/Essential - General,Automobile Parking Lots and Garages,GPC
Statement 18/06/2016 - 18/07/2016,Chief Executive,PAYPAL  KOVAMANUFAC,06/07/2016,7.45,Printing - General,Business Services-Not Elsewhere Classified,GPC
Statement 18/06/2016 - 18/07/2016,Chief Executive,POUNDWORLD RETAIL,20/06/2016,13.77,Other Expenditure - General,Discount Stores,GPC
Statement 18/06/2016 - 18/07/2016,Chief Executive,ROYAL BATH HOTEL,06/07/2016,15.20,Subsistence - General,"Lodging-Hotels, Motels, Resorts",GPC
Statement 18/06/2016 - 18/07/2016,Chief Executive,ROYAL BATH HOTEL,07/07/2016,40.00,Subsistence - General,"Lodging-Hotels, Motels, Resorts",GPC
Statement 18/06/2016 - 18/07/2016,Chief Executive,ROYAL MAIL,04/07/2016,156.50,Postal Services - General,Postage Stamps,GPC
Statement 18/06/2016 - 18/07/2016,Chief Executive,ROYAL MAIL,06/07/2016,165.00,Postal Services - General,Postage Stamps,GPC
Statement 18/06/2016 - 18/07/2016,Chief Executive,ROYAL MAIL,13/07/2016,43.65,Postal Services - General,Postage Stamps,GPC
Statement 18/06/2016 - 18/07/2016,Chief Executive,UPT - HIGHCROSS LEICESTE,22/06/2016,4.17,Schools Agency staff - Teaching Staff,Professional Services-Not Elsewhere Classified,GPC
Statement 18/06/2016 - 18/07/2016,Chief Executive,WWW.ICO.GOV.UK,23/06/2016,35.00,Other Expenditure - General,Government Services-Not Elsewhere Classified,GPC
Statement 18/06/2016 - 18/07/2016,Corporate Resources,43036690 COSTA COFFEE,07/07/2016,5.15,Subsistence - General,Fast-Food Restaurants (Quick Payment Service Pilot,GPC
Statement 18/06/2016 - 18/07/2016,Corporate Resources,A W BEESLEY & SON,25/06/2016,21.45,Other Services - General,"Lawn and Garden Supply Stores, Nurseries",GPC
Statement 18/06/2016 - 18/07/2016,Corporate Resources,AHS DIRECT / BBM,29/06/2016,194.40,Materials - General,"Lawn and Garden Supply Stores, Nurseries",GPC
Statement 18/06/2016 - 18/07/2016,Corporate Resources,Amazon UK Marketplace,13/07/2016,30.03,IT Equipment - General,Miscellaneous and Specialty Retail Stores,GPC
Statement 18/06/2016 - 18/07/2016,Corporate Resources,Amazon UK Marketplace,07/07/2016,42.32,IT Equipment - Purchase - Hardware,Book Stores,GPC
Statement 18/06/2016 - 18/07/2016,Corporate Resources,Amazon UK Marketplace,08/07/2016,21.65,IT Equipment - Purchase - Hardware,Miscellaneous and Specialty Retail Stores,GPC
Statement 18/06/2016 - 18/07/2016,Corporate Resources,Amazon UK Marketplace,04/07/2016,3.25,Materials - General,Miscellaneous and Specialty Retail Stores,GPC
Statement 18/06/2016 - 18/07/2016,Corporate Resources,Amazon UK Marketplace,07/07/2016,7.30,Materials - General,Miscellaneous and Specialty Retail Stores,GPC
Statement 18/06/2016 - 18/07/2016,Corporate Resources,Amazon UK Marketplace,08/07/2016,58.76,Materials - General,Miscellaneous and Specialty Retail Stores,GPC
Statement 18/06/2016 - 18/07/2016,Corporate Resources,Amazon UK Marketplace,11/07/2016,46.00,Materials - General,Miscellaneous and Specialty Retail Stores,GPC
Statement 18/06/2016 - 18/07/2016,Corporate Resources,Amazon UK Marketplace,06/07/2016,16.94,Newspapers & Periodicals - General,Miscellaneous and Specialty Retail Stores,GPC
Statement 18/06/2016 - 18/07/2016,Corporate Resources,Amazon UK Marketplace,23/06/2016,11.10,Other Expenditure - General,Book Stores,GPC
Statement 18/06/2016 - 18/07/2016,Corporate Resources,Amazon UK Marketplace,24/06/2016,9.81,Other Expenditure - General,Book Stores,GPC
Statement 18/06/2016 - 18/07/2016,Corporate Resources,Amazon UK Marketplace,27/06/2016,24.16,Other Expenditure - General,Miscellaneous and Specialty Retail Stores,GPC
Statement 18/06/2016 - 18/07/2016,Corporate Resources,Amazon UK Marketplace,29/06/2016,13.32,Other Expenditure - General,Miscellaneous and Specialty Retail Stores,GPC
Statement 18/06/2016 - 18/07/2016,Corporate Resources,Amazon UK Marketplace,04/07/2016,19.99,Other Expenditure - General,Book Stores,GPC
Statement 18/06/2016 - 18/07/2016,Corporate Resources,Amazon UK Marketplace,21/06/2016,39.39,Other Services - General,Miscellaneous and Specialty Retail Stores,GPC
Statement 18/06/2016 - 18/07/2016,Corporate Resources,Amazon UK Marketplace,12/07/2016,48.32,R & M Mechanical - Mechanical Repairs,Miscellaneous and Specialty Retail Stores,GPC
Statement 18/06/2016 - 18/07/2016,Corporate Resources,Amazon UK Marketplace,23/06/2016,6.09,Stationery - General,Miscellaneous and Specialty Retail Stores,GPC
Statement 18/06/2016 - 18/07/2016,Corporate Resources,Amazon UK Marketplace,05/07/2016,59.97,Stationery - General,Miscellaneous and Specialty Retail Stores,GPC
Statement 18/06/2016 - 18/07/2016,Corporate Resources,Amazon UK Marketplace,06/07/2016,12.85,Stationery - General,Book Stores,GPC
Statement 18/06/2016 - 18/07/2016,Corporate Resources,Amazon UK Marketplace,06/07/2016,15.05,Stationery - General,Miscellaneous and Specialty Retail Stores,GPC
Statement 18/06/2016 - 18/07/2016,Corporate Resources,Amazon UK Marketplace,13/07/2016,7.70,Telephones - Fax Charges,Book Stores,GPC
Statement 18/06/2016 - 18/07/2016,Corporate Resources,Amazon UK Marketplace,13/07/2016,1.63,Telephones - Fax Charges,Miscellaneous and Specialty Retail Stores,GPC
Statement 18/06/2016 - 18/07/2016,Corporate Resources,Amazon UK Marketplace,23/06/2016,11.88,Telephones - Mobile Phones,Miscellaneous and Specialty Retail Stores,GPC
Statement 18/06/2016 - 18/07/2016,Corporate Resources,Amazon UK Marketplace,24/06/2016,1.76,Telephones - Mobile Phones,Miscellaneous and Specialty Retail Stores,GPC
Statement 18/06/2016 - 18/07/2016,Corporate Resources,Amazon UK Marketplace,24/06/2016,20.33,Telephones - Mobile Phones,Miscellaneous and Specialty Retail Stores,GPC
Statement 18/06/2016 - 18/07/2016,Corporate Resources,Amazon UK Marketplace,21/06/2016,32.98,Training Expenses - General,Miscellaneous and Specialty Retail Stores,GPC
Statement 18/06/2016 - 18/07/2016,Corporate Resources,Amazon UK Marketplace,21/06/2016,19.97,Training Expenses - General,Miscellaneous and Specialty Retail Stores,GPC
Statement 18/06/2016 - 18/07/2016,Corporate Resources,Amazon UK Marketplace,05/07/2016,6.20,Training Expenses - General,Miscellaneous and Specialty Retail Stores,GPC
Statement 18/06/2016 - 18/07/2016,Corporate Resources,Amazon UK Retail,30/06/2016,60.05,Other Expenditure - General,Direct Marketers - Other,GPC
Statement 18/06/2016 - 18/07/2016,Corporate Resources,Amazon UK Retail,06/07/2016,21.83,Other Expenditure - General,Direct Marketers - Other,GPC
Statement 18/06/2016 - 18/07/2016,Corporate Resources,Amazon UK Retail,09/07/2016,7.09,Other Expenditure - General,Direct Marketers - Other,GPC
Statement 18/06/2016 - 18/07/2016,Corporate Resources,Amazon UK Retail,11/07/2016,14.29,Other Expenditure - General,Direct Marketers - Other,GPC
Statement 18/06/2016 - 18/07/2016,Corporate Resources,Amazon UK Retail,14/07/2016,29.16,Other Expenditure - General,Direct Marketers - Other,GPC
Statement 18/06/2016 - 18/07/2016,Corporate Resources,Amazon UK Retail,21/06/2016,38.48,Stationery - General,Direct Marketers - Other,GPC
Statement 18/06/2016 - 18/07/2016,Corporate Resources,Amazon UK Retail,04/07/2016,11.49,Training Expenses - General,Direct Marketers - Other,GPC
Statement 18/06/2016 - 18/07/2016,Corporate Resources,AMAZON UK RETAIL AMAZON.C,10/07/2016,42.86,Materials - General,Miscellaneous and Specialty Retail Stores,GPC
Statement 18/06/2016 - 18/07/2016,Corporate Resources,AMAZON UK RETAIL AMAZON.C,04/07/2016,34.09,Training Expenses - General,Miscellaneous and Specialty Retail Stores,GPC
Statement 18/06/2016 - 18/07/2016,Corporate Resources,amazonpayments.co.uk,27/06/2016,336.00,Materials - General,Business Services-Not Elsewhere Classified,GPC
Statement 18/06/2016 - 18/07/2016,Corporate Resources,ARCO LTD,23/06/2016,119.04,Other Services - General,Industrial Supplies Not Elsewhere Classified,GPC
Statement 18/06/2016 - 18/07/2016,Corporate Resources,ARCO LTD,23/06/2016,58.50,Protective Clothing & Uniforms - General,Industrial Supplies Not Elsewhere Classified,GPC
Statement 18/06/2016 - 18/07/2016,Corporate Resources,ARCO LTD,29/06/2016,87.56,Protective Clothing & Uniforms - General,Industrial Supplies Not Elsewhere Classified,GPC
Statement 18/06/2016 - 18/07/2016,Corporate Resources,ASDA STORES 4477,29/06/2016,9.55,Other Expenditure - General,"Grocery Stores, Supermarkets",GPC
Statement 18/06/2016 - 18/07/2016,Corporate Resources,ASDA STORES 4477,06/07/2016,6.76,Other Expenditure - General,"Grocery Stores, Supermarkets",GPC
Statement 18/06/2016 - 18/07/2016,Corporate Resources,ASDA STORES 4477,09/07/2016,7.00,Other Expenditure - General,"Grocery Stores, Supermarkets",GPC
Statement 18/06/2016 - 18/07/2016,Corporate Resources,ASDA STORES 4477,10/07/2016,6.20,Other Expenditure - General,"Grocery Stores, Supermarkets",GPC
Statement 18/06/2016 - 18/07/2016,Corporate Resources,ASDA STORES 4477,13/07/2016,2.45,Other Expenditure - General,"Grocery Stores, Supermarkets",GPC
Statement 18/06/2016 - 18/07/2016,Corporate Resources,B & Q 1052,25/06/2016,48.14,Other Services - General,"Building Materials, Lumber Stores",GPC
Statement 18/06/2016 - 18/07/2016,Corporate Resources,BASC MEMBERSHIP,11/07/2016,63.00,Other Services - General,"Membership Clubs (Sports, Recreation, Athletic), C",GPC
Statement 18/06/2016 - 18/07/2016,Corporate Resources,BATH BAKERY LTD,14/07/2016,6.25,Provisions - General,Bakeries,GPC
Statement 18/06/2016 - 18/07/2016,Corporate Resources,BLABY DISTRICT COUNCIL,30/06/2016,182.97,Other Expenditure - Recoverable Exp./Stolen Money,Government Services-Not Elsewhere Classified,GPC
Statement 18/06/2016 - 18/07/2016,Corporate Resources,BLABY DISTRICT COUNCIL,30/06/2016,7.50,Public Transport -  Staff - General,Automobile Parking Lots and Garages,GPC
Statement 18/06/2016 - 18/07/2016,Corporate Resources,BLAZE,17/06/2016,288.00,General Equipment - General,Miscellaneous General Merchandise Stores,GPC
Statement 18/06/2016 - 18/07/2016,Corporate Resources,BLORENGE GUEST HOUSE,29/06/2016,262.40,Training Expenses - General,"Lodging-Hotels, Motels, Resorts",GPC
Statement 18/06/2016 - 18/07/2016,Corporate Resources,BLS PREZI INC,24/06/2016,140.28,IT Equipment - Software,Computer Software Stores,GPC
Statement 18/06/2016 - 18/07/2016,Corporate Resources,BUS TICKET OR EMT WIFI,11/07/2016,15.00,Casual/Essential - General,"Bus Lines, Charters, Tour Buses",GPC
Statement 18/06/2016 - 18/07/2016,Corporate Resources,CAKE BOXES DIRECT,21/06/2016,46.00,Other Equipment & Materials - General,Miscellaneous and Specialty Retail Stores,GPC
Statement 18/06/2016 - 18/07/2016,Corporate Resources,CHINA CITY,28/06/2016,13.80,Subsistence - General,"Eating Places, Restaurants",GPC
Statement 18/06/2016 - 18/07/2016,Corporate Resources,CIEH,27/06/2016,904.25,Training Expenses - General,Membership Organizations-Not Elsewhere Classified,GPC
Statement 18/06/2016 - 18/07/2016,Corporate Resources,CIEH,07/07/2016,8.49,Training Expenses - General,Membership Organizations-Not Elsewhere Classified,GPC
Statement 18/06/2016 - 18/07/2016,Corporate Resources,CITB,05/07/2016,25.00,Training Expenses - General,"Colleges, Universities, Professional Schools, and",GPC
Statement 18/06/2016 - 18/07/2016,Corporate Resources,COBBLERS CORNER,06/07/2016,17.97,Operational Equipment - General,"Shoe Repair Shops, Shoe Shine Parlors, Hat Cleanin",GPC
Statement 18/06/2016 - 18/07/2016,Corporate Resources,COOKS FARM SHOP,18/06/2016,17.40,Other Expenditure - Public Enquiry fees,"Lawn and Garden Supply Stores, Nurseries",GPC
Statement 18/06/2016 - 18/07/2016,Corporate Resources,COOKS FARM SHOP,11/07/2016,17.40,Other Expenditure - Public Enquiry fees,"Lawn and Garden Supply Stores, Nurseries",GPC
Statement 18/06/2016 - 18/07/2016,Corporate Resources,COOKS FARM SHOP,28/06/2016,21.22,Other Services - General,"Lawn and Garden Supply Stores, Nurseries",GPC
Statement 18/06/2016 - 18/07/2016,Corporate Resources,CO-OP GROUP 070412,22/06/2016,13.68,Other Expenditure - General,"Grocery Stores, Supermarkets",GPC
Statement 18/06/2016 - 18/07/2016,Corporate Resources,CO-OP GROUP 070412,06/07/2016,10.84,Other Expenditure - General,"Grocery Stores, Supermarkets",GPC
Statement 18/06/2016 - 18/07/2016,Corporate Resources,COSTA COFFEE 43040790,28/06/2016,10.20,Subsistence - General,Fast-Food Restaurants (Quick Payment Service Pilot,GPC
Statement 18/06/2016 - 18/07/2016,Corporate Resources,CROSS COUNTRY CC,20/06/2016,35.80,Training Expenses - General,Passenger Railways,GPC
Statement 18/06/2016 - 18/07/2016,Corporate Resources,CROSS COUNTRY CC,22/06/2016,168.00,Training Expenses - General,Passenger Railways,GPC
Statement 18/06/2016 - 18/07/2016,Corporate Resources,CURRYS SUPERSTORE,14/07/2016,18.32,Materials - General,"RADIO, TELEVISION, AND STEREO STORES (ELECTRONIC STORES)",GPC
Statement 18/06/2016 - 18/07/2016,Corporate Resources,DATARACKS,15/07/2016,254.30,IT Equipment - General,Hardware Equipment and Supplies,GPC
Statement 18/06/2016 - 18/07/2016,Corporate Resources,DLR,27/06/2016,20.00,Public Transport -  Staff - General,Passenger Railways,GPC
Statement 18/06/2016 - 18/07/2016,Corporate Resources,DLR,28/06/2016,20.00,Public Transport -  Staff - General,Passenger Railways,GPC
Statement 18/06/2016 - 18/07/2016,Corporate Resources,DVLA VEHICLE TAX,20/06/2016,297.50,Road Licences - General,Government Services-Not Elsewhere Classified,GPC
Statement 18/06/2016 - 18/07/2016,Corporate Resources,DVLA VEHICLE TAX,23/06/2016,232.50,Road Licences - General,Government Services-Not Elsewhere Classified,GPC
Statement 18/06/2016 - 18/07/2016,Corporate Resources,DVLA VEHICLE TAX,23/06/2016,232.50,Road Licences - General,Government Services-Not Elsewhere Classified,GPC
Statement 18/06/2016 - 18/07/2016,Corporate Resources,DVLA VEHICLE TAX,11/07/2016,232.50,Road Licences - General,Government Services-Not Elsewhere Classified,GPC
Statement 18/06/2016 - 18/07/2016,Corporate Resources,DVLA VEHICLE TAX,11/07/2016,232.50,Road Licences - General,Government Services-Not Elsewhere Classified,GPC
Statement 18/06/2016 - 18/07/2016,Corporate Resources,EAST MIDLAND TRAINS,28/06/2016,12.00,Public Transport -  Staff - General,Automobile Parking Lots and Garages,GPC
Statement 18/06/2016 - 18/07/2016,Corporate Resources,EAST MIDLANDS LEICESTER,13/07/2016,13.50,Casual/Essential - General,Automobile Parking Lots and Garages,GPC
Statement 18/06/2016 - 18/07/2016,Corporate Resources,EAST MIDLANDS LEICESTER,14/07/2016,13.50,Casual/Essential - General,Automobile Parking Lots and Garages,GPC
Statement 18/06/2016 - 18/07/2016,Corporate Resources,EAST MIDLANDS LEICESTER,22/06/2016,13.50,Public Transport -  Staff - General,Automobile Parking Lots and Garages,GPC
Statement 18/06/2016 - 18/07/2016,Corporate Resources,EAST MIDLANDS LEICESTER,24/06/2016,13.50,Public Transport -  Staff - General,Automobile Parking Lots and Garages,GPC
Statement 18/06/2016 - 18/07/2016,Corporate Resources,EAST MIDLANDS LEICESTER,28/06/2016,21.00,Public Transport -  Staff - General,Automobile Parking Lots and Garages,GPC
Statement 18/06/2016 - 18/07/2016,Corporate Resources,EAST MIDLANDS LEICESTER,29/06/2016,13.50,Public Transport -  Staff - General,Automobile Parking Lots and Garages,GPC
Statement 18/06/2016 - 18/07/2016,Corporate Resources,EAST MIDLANDS LEICESTER,01/07/2016,27.00,Public Transport -  Staff - General,Automobile Parking Lots and Garages,GPC
Statement 18/06/2016 - 18/07/2016,Corporate Resources,EAST MIDLANDS LEICESTER,01/07/2016,27.00,Public Transport -  Staff - General,Automobile Parking Lots and Garages,GPC
Statement 18/06/2016 - 18/07/2016,Corporate Resources,EAST MIDLANDS LEICESTER,05/07/2016,7.50,Public Transport -  Staff - General,Automobile Parking Lots and Garages,GPC
Statement 18/06/2016 - 18/07/2016,Corporate Resources,EAST MIDLANDS MARKET HAR,07/07/2016,33.00,Casual/Essential - General,Automobile Parking Lots and Garages,GPC
Statement 18/06/2016 - 18/07/2016,Corporate Resources,EAST MIDLANDS MARKET HAR,11/07/2016,11.00,Casual/Essential - General,Automobile Parking Lots and Garages,GPC
Statement 18/06/2016 - 18/07/2016,Corporate Resources,EAST MIDLANDS MARKET HAR,11/07/2016,11.00,Casual/Essential - General,Automobile Parking Lots and Garages,GPC
Statement 18/06/2016 - 18/07/2016,Corporate Resources,EAST MIDLANDS MARKET HAR,12/07/2016,11.00,Casual/Essential - General,Automobile Parking Lots and Garages,GPC
Statement 18/06/2016 - 18/07/2016,Corporate Resources,EAST MIDLANDS MARKET HAR,13/07/2016,11.00,Casual/Essential - General,Automobile Parking Lots and Garages,GPC
Statement 18/06/2016 - 18/07/2016,Corporate Resources,EAST MIDLANDS MARKET HAR,13/07/2016,11.00,Casual/Essential - General,Automobile Parking Lots and Garages,GPC
Statement 18/06/2016 - 18/07/2016,Corporate Resources,EAST MIDLANDS MARKET HAR,15/07/2016,11.00,Casual/Essential - General,Automobile Parking Lots and Garages,GPC
Statement 18/06/2016 - 18/07/2016,Corporate Resources,EAST MIDLANDS MARKET HAR,16/06/2016,11.00,Public Transport -  Staff - General,Automobile Parking Lots and Garages,GPC
Statement 18/06/2016 - 18/07/2016,Corporate Resources,EAST MIDLANDS MARKET HAR,16/06/2016,11.00,Public Transport -  Staff - General,Automobile Parking Lots and Garages,GPC
Statement 18/06/2016 - 18/07/2016,Corporate Resources,EAST MIDLANDS MARKET HAR,17/06/2016,22.00,Public Transport -  Staff - General,Automobile Parking Lots and Garages,GPC
Statement 18/06/2016 - 18/07/2016,Corporate Resources,EAST MIDLANDS MARKET HAR,20/06/2016,11.00,Public Transport -  Staff - General,Automobile Parking Lots and Garages,GPC
Statement 18/06/2016 - 18/07/2016,Corporate Resources,EAST MIDLANDS MARKET HAR,20/06/2016,11.00,Public Transport -  Staff - General,Automobile Parking Lots and Garages,GPC
Statement 18/06/2016 - 18/07/2016,Corporate Resources,EAST MIDLANDS MARKET HAR,21/06/2016,11.00,Public Transport -  Staff - General,Automobile Parking Lots and Garages,GPC
Statement 18/06/2016 - 18/07/2016,Corporate Resources,EAST MIDLANDS MARKET HAR,21/06/2016,11.00,Public Transport -  Staff - General,Automobile Parking Lots and Garages,GPC
Statement 18/06/2016 - 18/07/2016,Corporate Resources,EAST MIDLANDS MARKET HAR,22/06/2016,11.00,Public Transport -  Staff - General,Automobile Parking Lots and Garages,GPC
Statement 18/06/2016 - 18/07/2016,Corporate Resources,EAST MIDLANDS MARKET HAR,23/06/2016,11.00,Public Transport -  Staff - General,Automobile Parking Lots and Garages,GPC
Statement 18/06/2016 - 18/07/2016,Corporate Resources,EAST MIDLANDS MARKET HAR,27/06/2016,11.00,Public Transport -  Staff - General,Automobile Parking Lots and Garages,GPC
Statement 18/06/2016 - 18/07/2016,Corporate Resources,EAST MIDLANDS MARKET HAR,28/06/2016,11.00,Public Transport -  Staff - General,Automobile Parking Lots and Garages,GPC
Statement 18/06/2016 - 18/07/2016,Corporate Resources,EAST MIDLANDS MARKET HAR,29/06/2016,17.50,Public Transport -  Staff - General,Automobile Parking Lots and Garages,GPC
Statement 18/06/2016 - 18/07/2016,Corporate Resources,EAST MIDLANDS MARKET HAR,04/07/2016,11.00,Public Transport -  Staff - General,Automobile Parking Lots and Garages,GPC
Statement 18/06/2016 - 18/07/2016,Corporate Resources,EAST MIDLANDS MARKET HAR,04/07/2016,6.50,Public Transport -  Staff - General,Automobile Parking Lots and Garages,GPC
Statement 18/06/2016 - 18/07/2016,Corporate Resources,EAST MIDLANDS TRAI,13/07/2016,59.50,Casual/Essential - General,Passenger Railways,GPC
Statement 18/06/2016 - 18/07/2016,Corporate Resources,EAST MIDLANDS TRAI,30/06/2016,28.90,Public Transport -  Staff - General,Passenger Railways,GPC
Statement 18/06/2016 - 18/07/2016,Corporate Resources,EASTMIDLANDSTRAINS,21/06/2016,277.00,Public Transport -  Staff - General,Passenger Railways,GPC
Statement 18/06/2016 - 18/07/2016,Corporate Resources,EASTMIDLANDSTRAINS,21/06/2016,67.50,Public Transport -  Staff - General,Passenger Railways,GPC
Statement 18/06/2016 - 18/07/2016,Corporate Resources,EB  EEVS MEASUREMENT A,11/07/2016,310.75,Training Expenses - General,Business Services-Not Elsewhere Classified,GPC
Statement 18/06/2016 - 18/07/2016,Corporate Resources,FACEBOOK 43SDW9JTE2,30/06/2016,153.27,Advertising - General,Advertising Services,GPC
Statement 18/06/2016 - 18/07/2016,Corporate Resources,FOREIGN EXCHANGE FEE,27/06/2016,3.86,IT Equipment - Software,Misc-Unknown,GPC
Statement 18/06/2016 - 18/07/2016,Corporate Resources,FOREIGN EXCHANGE FEE,27/06/2016,3.03,Publicity/Marketing - General,Misc-Unknown,GPC
Statement 18/06/2016 - 18/07/2016,Corporate Resources,FOREIGN EXCHANGE FEE,12/07/2016,1.26,Subscriptions - General,Misc-Unknown,GPC
Statement 18/06/2016 - 18/07/2016,Corporate Resources,FRIENDS HOUSE,14/07/2016,5.75,Other Services - General,Religious Organizations,GPC
Statement 18/06/2016 - 18/07/2016,Corporate Resources,FRIENDS MEETING HOUSE,16/06/2016,120.00,Conference - General,Business Services-Not Elsewhere Classified,GPC
Statement 18/06/2016 - 18/07/2016,Corporate Resources,GANTTIC LLC,11/07/2016,45.92,Subscriptions - General,Miscellaneous and Specialty Retail Stores,GPC
Statement 18/06/2016 - 18/07/2016,Corporate Resources,GIRAFFE CONCEPTS LTD,13/07/2016,21.07,Subsistence - General,"Eating Places, Restaurants",GPC
Statement 18/06/2016 - 18/07/2016,Corporate Resources,GOAT & TRICYCLE,05/07/2016,17.45,Subsistence - General,"Eating Places, Restaurants",GPC
Statement 18/06/2016 - 18/07/2016,Corporate Resources,GOURMET COFFEE BAR,06/07/2016,6.21,Subsistence - General,Fast-Food Restaurants (Quick Payment Service Pilot,GPC
Statement 18/06/2016 - 18/07/2016,Corporate Resources,GOURMET COFFEE BAR,11/07/2016,2.20,Subsistence - General,Fast-Food Restaurants (Quick Payment Service Pilot,GPC
Statement 18/06/2016 - 18/07/2016,Corporate Resources,GOURMET COFFEE BAR,14/07/2016,3.40,Subsistence - General,Fast-Food Restaurants (Quick Payment Service Pilot,GPC
Statement 18/06/2016 - 18/07/2016,Corporate Resources,GYNSILLS,06/07/2016,20.58,Subsistence - General,"Drinking Places (Alcoholic Beverages)-Bars, Tavern",GPC
Statement 18/06/2016 - 18/07/2016,Corporate Resources,HALFORDS 0428,12/07/2016,23.97,Other Services - General,Bicycle Shops-Sales and Service,GPC
Statement 18/06/2016 - 18/07/2016,Corporate Resources,HALFORDS 0560,23/06/2016,38.97,Materials - General,Bicycle Shops-Sales and Service,GPC
Statement 18/06/2016 - 18/07/2016,Corporate Resources,HARLOW BROS LTD,08/07/2016,48.57,Operational Equipment - General,"Building Materials, Lumber Stores",GPC
Statement 18/06/2016 - 18/07/2016,Corporate Resources,HARLOW BROS LTD,13/07/2016,16.20,Other Expenditure - General,"Building Materials, Lumber Stores",GPC
Statement 18/06/2016 - 18/07/2016,Corporate Resources,HIGGOTTS,05/07/2016,9.27,Operational Equipment - General,Landscaping and Horticultural Services,GPC
Statement 18/06/2016 - 18/07/2016,Corporate Resources,HIGGOTTS,08/07/2016,5.21,Other Services - General,Landscaping and Horticultural Services,GPC
Statement 18/06/2016 - 18/07/2016,Corporate Resources,HOOTSUITE MEDIA INC.,24/06/2016,110.28,Publicity/Marketing - General,Business Services-Not Elsewhere Classified,GPC
Statement 18/06/2016 - 18/07/2016,Corporate Resources,HTTP://ACE.APPRENTICES,28/06/2016,22.00,Training Expenses - General,"Management, Consulting and Public Relations Servic",GPC
Statement 18/06/2016 - 18/07/2016,Corporate Resources,HTTP://ACE.APPRENTICES,28/06/2016,22.00,Training Expenses - General,"Management, Consulting and Public Relations Servic",GPC
Statement 18/06/2016 - 18/07/2016,Corporate Resources,HTTP://ACE.APPRENTICES,04/07/2016,22.00,Training Expenses - General,"Management, Consulting and Public Relations Servic",GPC
Statement 18/06/2016 - 18/07/2016,Corporate Resources,INDIGO PARK SOLUTI,30/06/2016,7.70,Subsistence - General,Automobile Parking Lots and Garages,GPC
Statement 18/06/2016 - 18/07/2016,Corporate Resources,INFECTION PREVENTI,13/07/2016,70.00,Training Expenses - General,Charitable and Social Service Organizations,GPC
Statement 18/06/2016 - 18/07/2016,Corporate Resources,INSOMNIA,12/07/2016,2.55,Subsistence - General,Fast-Food Restaurants (Quick Payment Service Pilot,GPC
Statement 18/06/2016 - 18/07/2016,Corporate Resources,KOHTHAI TAPAS BOURNEMOUT,06/07/2016,30.25,Subsistence - General,"Eating Places, Restaurants",GPC
Statement 18/06/2016 - 18/07/2016,Corporate Resources,LCC CATERING SERVICES,05/07/2016,3.70,Other Expenditure - General,Government Services-Not Elsewhere Classified,GPC
Statement 18/06/2016 - 18/07/2016,Corporate Resources,LCC CATERING SERVICES,05/07/2016,5.58,Other Expenditure - General,Government Services-Not Elsewhere Classified,GPC
Statement 18/06/2016 - 18/07/2016,Corporate Resources,LCC CATERING SERVICES,06/07/2016,4.25,Other Expenditure - General,Government Services-Not Elsewhere Classified,GPC
Statement 18/06/2016 - 18/07/2016,Corporate Resources,LCC CATERING SERVICES,11/07/2016,4.50,Other Expenditure - General,Government Services-Not Elsewhere Classified,GPC
Statement 18/06/2016 - 18/07/2016,Corporate Resources,LCC CATERING SERVICES,06/07/2016,4.00,Subsistence - General,Government Services-Not Elsewhere Classified,GPC
Statement 18/06/2016 - 18/07/2016,Corporate Resources,LE FEVRES STORES,15/07/2016,7.34,Materials - General,"Grocery Stores, Supermarkets",GPC
Statement 18/06/2016 - 18/07/2016,Corporate Resources,LE FEVRES STORES,17/06/2016,6.84,Other Expenditure - General,"Grocery Stores, Supermarkets",GPC
Statement 18/06/2016 - 18/07/2016,Corporate Resources,LIGHTHOUSE CHURCH,12/07/2016,52.00,Other Services - General,Charitable and Social Service Organizations,GPC
Statement 18/06/2016 - 18/07/2016,Corporate Resources,LINKEDIN-280 6170254,17/06/2016,227.94,Other Expenditure - General,Continuity/Subscription Merchants,GPC
Statement 18/06/2016 - 18/07/2016,Corporate Resources,LINKEDIN-282 3217694,27/06/2016,227.94,Other Expenditure - General,Continuity/Subscription Merchants,GPC
Statement 18/06/2016 - 18/07/2016,Corporate Resources,LINKEDIN-282 5277984,28/06/2016,227.94,Other Expenditure - General,Continuity/Subscription Merchants,GPC
Statement 18/06/2016 - 18/07/2016,Corporate Resources,LINKEDIN-282 5279254,28/06/2016,227.94,Other Expenditure - General,Continuity/Subscription Merchants,GPC
Statement 18/06/2016 - 18/07/2016,Corporate Resources,LINKEDIN-282 5678544,28/06/2016,227.94,Other Expenditure - General,Continuity/Subscription Merchants,GPC
Statement 18/06/2016 - 18/07/2016,Corporate Resources,LINKEDIN-2832035884,01/07/2016,227.94,Recruitment Advertising - General,Continuity/Subscription Merchants,GPC
Statement 18/06/2016 - 18/07/2016,Corporate Resources,LINKEDIN-2838090134,05/07/2016,227.94,Other Expenditure - General,Continuity/Subscription Merchants,GPC
Statement 18/06/2016 - 18/07/2016,Corporate Resources,LINKEDIN-284 2707744,07/07/2016,227.94,Other Expenditure - General,Continuity/Subscription Merchants,GPC
Statement 18/06/2016 - 18/07/2016,Corporate Resources,LINKEDIN-284 4031374,08/07/2016,227.94,Other Expenditure - General,Continuity/Subscription Merchants,GPC
Statement 18/06/2016 - 18/07/2016,Corporate Resources,LINKEDIN-2840016664,06/07/2016,227.94,Other Expenditure - General,Continuity/Subscription Merchants,GPC
Statement 18/06/2016 - 18/07/2016,Corporate Resources,LINKEDIN-285 2228794,13/07/2016,227.94,Other Expenditure - General,Continuity/Subscription Merchants,GPC
Statement 18/06/2016 - 18/07/2016,Corporate Resources,LINKEDIN-2852281834,13/07/2016,227.94,Other Expenditure - General,Continuity/Subscription Merchants,GPC
Statement 18/06/2016 - 18/07/2016,Corporate Resources,LINKEDIN-2856338944,15/07/2016,227.94,Other Expenditure - General,Continuity/Subscription Merchants,GPC
Statement 18/06/2016 - 18/07/2016,Corporate Resources,M&S SIMPLY FOOD - SSP,14/07/2016,10.08,Provisions - General,"Miscellaneous Food Stores-Convenience Stores, Mark",GPC
Statement 18/06/2016 - 18/07/2016,Corporate Resources,M&S SIMPLY FOOD - SSP,27/06/2016,4.15,Subsistence - General,"Miscellaneous Food Stores-Convenience Stores, Mark",GPC
Statement 18/06/2016 - 18/07/2016,Corporate Resources,Mailbox Car Park Limited,30/06/2016,10.60,Casual/Essential - General,Automobile Parking Lots and Garages,GPC
Statement 18/06/2016 - 18/07/2016,Corporate Resources,Mailbox Car Park Limited,01/07/2016,8.50,Casual/Essential - General,Automobile Parking Lots and Garages,GPC
Statement 18/06/2016 - 18/07/2016,Corporate Resources,MARKS&SPENCER PLC SACA,07/07/2016,4.05,Subsistence - General,"Grocery Stores, Supermarkets",GPC
Statement 18/06/2016 - 18/07/2016,Corporate Resources,METROLINK TVM,08/07/2016,5.70,Casual/Essential - General,"Bus Lines, Charters, Tour Buses",GPC
Statement 18/06/2016 - 18/07/2016,Corporate Resources,METROLINK TVM,12/07/2016,3.60,Casual/Essential - General,"Bus Lines, Charters, Tour Buses",GPC
Statement 18/06/2016 - 18/07/2016,Corporate Resources,METROLINK TVM,13/07/2016,4.00,Casual/Essential - General,"Bus Lines, Charters, Tour Buses",GPC
Statement 18/06/2016 - 18/07/2016,Corporate Resources,METROLINK TVM,21/06/2016,4.00,Public Transport -  Staff - General,"Bus Lines, Charters, Tour Buses",GPC
Statement 18/06/2016 - 18/07/2016,Corporate Resources,METROLINK TVM,27/06/2016,3.60,Public Transport -  Staff - General,"Bus Lines, Charters, Tour Buses",GPC
Statement 18/06/2016 - 18/07/2016,Corporate Resources,METROLINK TVM,01/07/2016,3.60,Public Transport -  Staff - General,"Bus Lines, Charters, Tour Buses",GPC
Statement 18/06/2016 - 18/07/2016,Corporate Resources,METROLINK TVM,06/07/2016,3.60,Public Transport -  Staff - General,"Bus Lines, Charters, Tour Buses",GPC
Statement 18/06/2016 - 18/07/2016,Corporate Resources,MING MOON RESTAURANT,30/06/2016,179.88,Subsistence - General,"Eating Places, Restaurants",GPC
Statement 18/06/2016 - 18/07/2016,Corporate Resources,NANDOS LEICESTER MERID,05/07/2016,9.40,Subsistence - General,"Eating Places, Restaurants",GPC
Statement 18/06/2016 - 18/07/2016,Corporate Resources,NORTHERN RAIL LTD-,08/07/2016,12.90,Casual/Essential - General,Passenger Railways,GPC
Statement 18/06/2016 - 18/07/2016,Corporate Resources,NORTHERN RAIL LTD-,21/06/2016,10.50,Public Transport -  Staff - General,Passenger Railways,GPC
Statement 18/06/2016 - 18/07/2016,Corporate Resources,OSBORNES OADBY,16/07/2016,19.41,Stationery - General,"Stationery, Office, and School Supply Stores",GPC
Statement 18/06/2016 - 18/07/2016,Corporate Resources,OYSTER RENEW WEB,21/06/2016,20.83,Public Transport -  Staff - General,Passenger Railways,GPC
Statement 18/06/2016 - 18/07/2016,Corporate Resources,OYSTER RENEW WEB,06/07/2016,50.00,Public Transport -  Staff - General,Passenger Railways,GPC
Statement 18/06/2016 - 18/07/2016,Corporate Resources,PARKER MOTOR SERVICE,29/06/2016,49.10,Other Services - General,"Automotive Parts, Accessories Stores",GPC
Statement 18/06/2016 - 18/07/2016,Corporate Resources,PAYPAL  DARRENCAVEN,12/07/2016,50.00,Recruitment Advertising - General,Professional Services-Not Elsewhere Classified,GPC
Statement 18/06/2016 - 18/07/2016,Corporate Resources,PAYPAL  TRAINERCOUR,07/07/2016,75.00,Training Expenses - General,Advertising Services,GPC
Statement 18/06/2016 - 18/07/2016,Corporate Resources,POST OFFICE COUNTER,28/06/2016,49.78,Postal Services - General,Postage Stamps,GPC
Statement 18/06/2016 - 18/07/2016,Corporate Resources,POST OFFICE COUNTER,15/07/2016,7.68,Postal Services - General,Postage Stamps,GPC
Statement 18/06/2016 - 18/07/2016,Corporate Resources,PP EDSIMPSONSO,07/07/2016,150.00,Other Expenditure - General,Sporting Goods Stores,GPC
Statement 18/06/2016 - 18/07/2016,Corporate Resources,PRACTICALC&VRENTAL,28/06/2016,150.00,Contract Hire - General,Automobile Rental Agency,GPC
Statement 18/06/2016 - 18/07/2016,Corporate Resources,PREMIER INN44521260,16/07/2016,50.40,Subsistence - General,PREMIER TRAVEL,GPC
Statement 18/06/2016 - 18/07/2016,Corporate Resources,PREMIER INN44521260,16/07/2016,50.40,Subsistence - General,PREMIER TRAVEL,GPC
Statement 18/06/2016 - 18/07/2016,Corporate Resources,PREMIER INN44521815,04/07/2016,915.20,Training Expenses - General,PREMIER TRAVEL,GPC
Statement 18/06/2016 - 18/07/2016,Corporate Resources,PREMIER INN44521815,04/07/2016,953.99,Training Expenses - General,PREMIER TRAVEL,GPC
Statement 18/06/2016 - 18/07/2016,Corporate Resources,PREMIER INN44521815,06/07/2016,-109.99,Training Expenses - General,PREMIER TRAVEL,GPC
Statement 18/06/2016 - 18/07/2016,Corporate Resources,PRET A MANGER,22/06/2016,15.49,Public Transport -  Staff - General,"Eating Places, Restaurants",GPC
Statement 18/06/2016 - 18/07/2016,Corporate Resources,PRET A MANGER,14/07/2016,6.20,Subsistence - General,"Eating Places, Restaurants",GPC
Statement 18/06/2016 - 18/07/2016,Corporate Resources,PUMPKIN CAFE,13/07/2016,4.19,Materials - General,"Package Stores, Beer, Wine, Liquor",GPC
Statement 18/06/2016 - 18/07/2016,Corporate Resources,PUMPKIN CAFE,13/07/2016,3.79,Materials - General,"Package Stores, Beer, Wine, Liquor",GPC
Statement 18/06/2016 - 18/07/2016,Corporate Resources,PUMPKIN CAFE,06/07/2016,2.68,Subsistence - General,"Package Stores, Beer, Wine, Liquor",GPC
Statement 18/06/2016 - 18/07/2016,Corporate Resources,RADISSON BLU,14/07/2016,433.99,Conference - General,SAS Hotels,GPC
Statement 18/06/2016 - 18/07/2016,Corporate Resources,RAIL GOURMET UK,22/06/2016,2.30,Subsistence - General,"Eating Places, Restaurants",GPC
Statement 18/06/2016 - 18/07/2016,Corporate Resources,REDLINE AVIATION SEC LTD,27/06/2016,9.00,Training Expenses - General,Professional Services-Not Elsewhere Classified,GPC
Statement 18/06/2016 - 18/07/2016,Corporate Resources,RYMAN,21/06/2016,27.98,Books - General,"Stationery, Office, and School Supply Stores",GPC
Statement 18/06/2016 - 18/07/2016,Corporate Resources,RYMAN 1096,02/07/2016,16.39,Books - General,"Stationery, Office, and School Supply Stores",GPC
Statement 18/06/2016 - 18/07/2016,Corporate Resources,SAINSBURY'S S/MKT,30/06/2016,22.50,Materials - General,"Grocery Stores, Supermarkets",GPC
Statement 18/06/2016 - 18/07/2016,Corporate Resources,SAINSBURY'S S/MKT,30/06/2016,86.30,Materials - General,"Grocery Stores, Supermarkets",GPC
Statement 18/06/2016 - 18/07/2016,Corporate Resources,SAINSBURYS S/MKTS,01/07/2016,30.40,Materials - General,"Grocery Stores, Supermarkets",GPC
Statement 18/06/2016 - 18/07/2016,Corporate Resources,SAINSBURY'S SMKT,12/07/2016,8.55,Materials - General,"Grocery Stores, Supermarkets",GPC
Statement 18/06/2016 - 18/07/2016,Corporate Resources,SCREWFIX,08/07/2016,19.99,Operational Equipment - General,"Building Materials, Lumber Stores",GPC
Statement 18/06/2016 - 18/07/2016,Corporate Resources,SCREWFIX,18/06/2016,30.43,Other Expenditure - General,"Building Materials, Lumber Stores",GPC
Statement 18/06/2016 - 18/07/2016,Corporate Resources,SCREWFIX,18/06/2016,3.33,Other Expenditure - General,"Building Materials, Lumber Stores",GPC
Statement 18/06/2016 - 18/07/2016,Corporate Resources,SCREWFIX,15/07/2016,83.33,Other Services - General,"Building Materials, Lumber Stores",GPC
Statement 18/06/2016 - 18/07/2016,Corporate Resources,SCREWFIX,08/07/2016,58.23,R & M of Buildings - General,"Building Materials, Lumber Stores",GPC
Statement 18/06/2016 - 18/07/2016,Corporate Resources,SCREWFIX DIRECT LT,27/06/2016,89.95,R & M of Buildings - General,"Building Materials, Lumber Stores",GPC
Statement 18/06/2016 - 18/07/2016,Corporate Resources,Shell Ashby,10/07/2016,4.17,Petrol/Oil/Tyres/Spares - General,Service Stations (with or without Ancillary Servic,GPC
Statement 18/06/2016 - 18/07/2016,Corporate Resources,SLB SUPPLIES LTD,28/06/2016,29.25,Other Services - General,Pet Shops-Pet Food and Supplies,GPC
Statement 18/06/2016 - 18/07/2016,Corporate Resources,SON OF PETER,05/07/2016,32.50,Subsistence - General,Fast-Food Restaurants (Quick Payment Service Pilot,GPC
Statement 18/06/2016 - 18/07/2016,Corporate Resources,SOURCED MARKET,22/06/2016,4.30,Subsistence - General,"Miscellaneous Food Stores-Convenience Stores, Mark",GPC
Statement 18/06/2016 - 18/07/2016,Corporate Resources,SP  TIMOTHY WOOD LIMI,06/07/2016,8.58,Operational Equipment - General,Hardware Equipment and Supplies,GPC
Statement 18/06/2016 - 18/07/2016,Corporate Resources,STAYBRIDGE SUITES,17/06/2016,200.00,Training Expenses - General,"Lodging-Hotels, Motels, Resorts",GPC
Statement 18/06/2016 - 18/07/2016,Corporate Resources,STOP GAP,05/07/2016,7.92,Subsistence - General,"Eating Places, Restaurants",GPC
Statement 18/06/2016 - 18/07/2016,Corporate Resources,SUNNYSIDE GARDEN CENTRE,17/06/2016,31.98,Other Services - General,"Florists Supplies, Nursery Stock, and Flowers",GPC
Statement 18/06/2016 - 18/07/2016,Corporate Resources,SurveyMonkey,15/07/2016,26.00,IT Equipment - Maintenance,Computer and Data Processing Services,GPC
Statement 18/06/2016 - 18/07/2016,Corporate Resources,SWIMMING TIMES LTD,27/06/2016,955.20,Stationery - General,"Stationary, Office Supplies, Printing and Writing",GPC
Statement 18/06/2016 - 18/07/2016,Corporate Resources,TESCO PFS 6178,30/06/2016,3.84,Subsistence - General,Service Stations (with or without Ancillary Servic,GPC
Statement 18/06/2016 - 18/07/2016,Corporate Resources,TESCO STORES 2044,21/06/2016,19.22,Other Expenditure - General,"Grocery Stores, Supermarkets",GPC
Statement 18/06/2016 - 18/07/2016,Corporate Resources,TESCO STORES 5917,15/07/2016,3.14,Materials - General,"Grocery Stores, Supermarkets",GPC
Statement 18/06/2016 - 18/07/2016,Corporate Resources,TESCO STORES 6554,27/06/2016,5.72,Subsistence - General,"Grocery Stores, Supermarkets",GPC
Statement 18/06/2016 - 18/07/2016,Corporate Resources,TESCO STORES 6854,28/06/2016,4.60,Materials - General,"Grocery Stores, Supermarkets",GPC
Statement 18/06/2016 - 18/07/2016,Corporate Resources,THE KING CHARLES HOTEL,10/07/2016,150.00,Training Expenses - General,"Lodging-Hotels, Motels, Resorts",GPC
Statement 18/06/2016 - 18/07/2016,Corporate Resources,THE LABEL PEOPLE LTD,01/07/2016,89.36,IT Equipment - General,Miscellaneous Publishing and  Printing,GPC
Statement 18/06/2016 - 18/07/2016,Corporate Resources,TIMPSON GROUP PLC,20/06/2016,17.50,IT Equipment - Purchase - Hardware,Miscellaneous and Specialty Retail Stores,GPC
Statement 18/06/2016 - 18/07/2016,Corporate Resources,TRADEFIXDIRECT.COM,04/07/2016,20.60,Other Services - General,Hardware Equipment and Supplies,GPC
Statement 18/06/2016 - 18/07/2016,Corporate Resources,TRADING STANDARDS INST,28/06/2016,68.25,Training Expenses - General,CombinationMail/Phones and Retail Merchants,GPC
Statement 18/06/2016 - 18/07/2016,Corporate Resources,TRADING STANDARDS INST,28/06/2016,39.00,Training Expenses - General,CombinationMail/Phones and Retail Merchants,GPC
Statement 18/06/2016 - 18/07/2016,Corporate Resources,TRADING STANDARDS INST,28/06/2016,39.00,Training Expenses - General,CombinationMail/Phones and Retail Merchants,GPC
Statement 18/06/2016 - 18/07/2016,Corporate Resources,TRAINLINE,13/07/2016,114.65,Casual/Essential - General,Passenger Railways,GPC
Statement 18/06/2016 - 18/07/2016,Corporate Resources,TRAVELODGE WEBSITE,20/06/2016,240.67,Training Expenses - General,Travelodge,GPC
Statement 18/06/2016 - 18/07/2016,Corporate Resources,Uber BV,12/07/2016,9.57,Casual/Essential - General,Taxicabs and Limousines,GPC
Statement 18/06/2016 - 18/07/2016,Corporate Resources,UPT-EAST MIDLANDS TRN-LB,01/07/2016,23.00,Public Transport -  Staff - General,Professional Services-Not Elsewhere Classified,GPC
Statement 18/06/2016 - 18/07/2016,Corporate Resources,UPT-EAST MIDLANDS TRN-LB,15/07/2016,18.50,Schools Agency staff - Teaching Staff,Professional Services-Not Elsewhere Classified,GPC
Statement 18/06/2016 - 18/07/2016,Corporate Resources,Village Hotel Warrington,14/07/2016,7.50,Subsistence - General,"Lodging-Hotels, Motels, Resorts",GPC
Statement 18/06/2016 - 18/07/2016,Corporate Resources,VILLAGE HT WARRINGTON (G,14/07/2016,18.45,Subsistence - General,"Lodging-Hotels, Motels, Resorts",GPC
Statement 18/06/2016 - 18/07/2016,Corporate Resources,VUE NCS CITB HS&E TEST,20/06/2016,19.50,Training Expenses - General,Schools and Educational Services-Not Elsewhere Cla,GPC
Statement 18/06/2016 - 18/07/2016,Corporate Resources,WAITROSE 636,17/06/2016,4.42,Subsistence - General,"Grocery Stores, Supermarkets",GPC
Statement 18/06/2016 - 18/07/2016,Corporate Resources,WAITROSE 636,29/06/2016,6.25,Subsistence - General,"Grocery Stores, Supermarkets",GPC
Statement 18/06/2016 - 18/07/2016,Corporate Resources,WEST COAST TRAINS,14/07/2016,25.50,Casual/Essential - General,Automobile Parking Lots and Garages,GPC
Statement 18/06/2016 - 18/07/2016,Corporate Resources,WEST COAST TRAINS,21/06/2016,8.50,Public Transport -  Staff - General,Automobile Parking Lots and Garages,GPC
Statement 18/06/2016 - 18/07/2016,Corporate Resources,WEST COAST TRAINS LTD,27/06/2016,1.95,Public Transport -  Staff - General,"Candy, Nut, Confectionery Stores",GPC
Statement 18/06/2016 - 18/07/2016,Corporate Resources,WESTMINSTER FORUM,13/07/2016,210.00,Training Expenses - General,"Management, Consulting and Public Relations Servic",GPC
Statement 18/06/2016 - 18/07/2016,Corporate Resources,WILKO RETAIL LIMIT,25/06/2016,26.00,Operational Equipment - General,Household Appliance Stores,GPC
Statement 18/06/2016 - 18/07/2016,Corporate Resources,WILKO RETAIL LIMIT,29/06/2016,15.95,Other Services - General,Household Appliance Stores,GPC
Statement 18/06/2016 - 18/07/2016,Corporate Resources,WM MORRISON 054,11/07/2016,3.05,Materials - General,"Grocery Stores, Supermarkets",GPC
Statement 18/06/2016 - 18/07/2016,Corporate Resources,WM MORRISON 054,04/07/2016,8.00,Other Services - General,"Grocery Stores, Supermarkets",GPC
Statement 18/06/2016 - 18/07/2016,Corporate Resources,WP-ARTS MARKETING,04/07/2016,75.00,Training Expenses - General,Professional Services-Not Elsewhere Classified,GPC
Statement 18/06/2016 - 18/07/2016,Corporate Resources,WWW OPPASSESSMENT EU COM,17/06/2016,319.80,Training Expenses - General,Business Services-Not Elsewhere Classified,GPC
Statement 18/06/2016 - 18/07/2016,Corporate Resources,WWW OPPASSESSMENT EU COM,20/06/2016,266.50,Training Expenses - General,Business Services-Not Elsewhere Classified,GPC
Statement 18/06/2016 - 18/07/2016,Corporate Resources,WWW.ABBEYTHEATRE.O,15/07/2016,37.00,Public Transport -  Staff - General,"Theatrical Products (Except Motion Pictures), Tick",GPC
Statement 18/06/2016 - 18/07/2016,Corporate Resources,WWW.ACCOUNTS@IIA.ORG.U,20/06/2016,350.00,Training Expenses - General,"Accounting, Auditing, and Bookkeeping Services",GPC
Statement 18/06/2016 - 18/07/2016,Corporate Resources,WWW.CIMAGLOBAL.COM,06/07/2016,60.00,Training Expenses - General,"Colleges, Universities, Professional Schools, and",GPC
Statement 18/06/2016 - 18/07/2016,Corporate Resources,WWW.COMMIDEA.COM,28/06/2016,193.94,IT Equipment - General,Computer and Data Processing Services,GPC
Statement 18/06/2016 - 18/07/2016,Corporate Resources,WWW.HAITHS.COM,07/07/2016,17.99,Other Services - General,Pet Shops-Pet Food and Supplies,GPC
Statement 18/06/2016 - 18/07/2016,Corporate Resources,WWW.PMGLTD.CO.UK,12/07/2016,740.00,Training Expenses - General,Business Services-Not Elsewhere Classified,GPC
Statement 18/06/2016 - 18/07/2016,Corporate Resources,WWW.SIMPLYSPAX.CO.UK,04/07/2016,25.30,Other Services - General,Hardware Stores,GPC
Statement 18/06/2016 - 18/07/2016,Corporate Resources,WWW.STELLARLEARNING.CO.U,27/06/2016,100.00,Training Expenses - General,Miscellaneous Personal Services-Not Elsewhere Clas,GPC
Statement 18/06/2016 - 18/07/2016,Corporate Resources,WWW.SUPERBREAK.COM,01/07/2016,258.48,Training Expenses - General,Travel Agencies,GPC
Statement 18/06/2016 - 18/07/2016,Corporate Resources,WWW.SUPERBREAK.COM,01/07/2016,105.12,Training Expenses - General,Travel Agencies,GPC
Statement 18/06/2016 - 18/07/2016,Corporate Resources,WWW.SUPERBREAK.COM,01/07/2016,92.16,Training Expenses - General,Travel Agencies,GPC
Statement 18/06/2016 - 18/07/2016,Corporate Resources,WWW.TREES.ORG.UK,06/06/2016,-96.00,Training Expenses - General,Charitable and Social Service Organizations,GPC
Statement 18/06/2016 - 18/07/2016,Corporate Resources,WWW.VIKING-DIRECT.CO.U,13/07/2016,17.98,Catering Equipment - General,"Stationary, Office Supplies, Printing and Writing",GPC
Statement 18/06/2016 - 18/07/2016,Corporate Resources,WWW.VIKING-DIRECT.CO.U,05/07/2016,38.95,Stationery - General,"Stationary, Office Supplies, Printing and Writing",GPC
Statement 18/06/2016 - 18/07/2016,Corporate Resources,WWW.VIKING-DIRECT.CO.U,13/07/2016,99.00,Training Expenses - General,"Stationary, Office Supplies, Printing and Writing",GPC
Statement 18/06/2016 - 18/07/2016,Corporate Resources,XC TRAINS LTD,13/07/2016,3.30,Casual/Essential - General,Passenger Railways,GPC
Statement 18/06/2016 - 18/07/2016,Corporate Resources,ZERO SETTE,27/06/2016,55.00,Subsistence - General,"Eating Places, Restaurants",GPC
Statement 18/06/2016 - 18/07/2016,Corporate Resources,ZIPCUBE,20/06/2016,100.00,Conference - General,Business Services-Not Elsewhere Classified,GPC
Statement 18/06/2016 - 18/07/2016,E&T,ALENTEC ORION LTD,01/07/2016,333.26,Materials - General,Motor Vehicle Supplies and New Parts,GPC
Statement 18/06/2016 - 18/07/2016,E&T,Amazon Prime,22/06/2016,-79.00,Other Expenditure - General,Continuity/Subscription Merchants,GPC
Statement 18/06/2016 - 18/07/2016,E&T,Amazon Svcs Europe SAR,29/06/2016,19.35,Other Equipment & Materials - General,Book Stores,GPC
Statement 18/06/2016 - 18/07/2016,E&T,Amazon UK Marketplace,28/06/2016,20.83,Other Equipment & Materials - General,Miscellaneous and Specialty Retail Stores,GPC
Statement 18/06/2016 - 18/07/2016,E&T,Amazon UK Marketplace,29/06/2016,5.53,Other Equipment & Materials - General,Miscellaneous and Specialty Retail Stores,GPC
Statement 18/06/2016 - 18/07/2016,E&T,Amazon UK Marketplace,29/06/2016,14.26,Other Equipment & Materials - General,Miscellaneous and Specialty Retail Stores,GPC
Statement 18/06/2016 - 18/07/2016,E&T,Amazon UK Retail,19/06/2016,20.70,Other Equipment & Materials - General,Direct Marketers - Other,GPC
Statement 18/06/2016 - 18/07/2016,E&T,DVLA VEHICLE TAX,23/06/2016,167.50,Road Licences - General,Government Services-Not Elsewhere Classified,GPC
Statement 18/06/2016 - 18/07/2016,E&T,DVLA VEHICLE TAX,23/06/2016,167.50,Road Licences - General,Government Services-Not Elsewhere Classified,GPC
Statement 18/06/2016 - 18/07/2016,E&T,DVLA VEHICLE TAX,23/06/2016,232.50,Road Licences - General,Government Services-Not Elsewhere Classified,GPC
Statement 18/06/2016 - 18/07/2016,E&T,DVLA VEHICLE TAX,23/06/2016,232.50,Road Licences - General,Government Services-Not Elsewhere Classified,GPC
Statement 18/06/2016 - 18/07/2016,E&T,DVLA VEHICLE TAX,23/06/2016,232.50,Road Licences - General,Government Services-Not Elsewhere Classified,GPC
Statement 18/06/2016 - 18/07/2016,E&T,DVLA VEHICLE TAX,04/07/2016,202.50,Road Licences - General,Government Services-Not Elsewhere Classified,GPC
Statement 18/06/2016 - 18/07/2016,E&T,DVLA VEHICLE TAX,07/07/2016,167.50,Road Licences - General,Government Services-Not Elsewhere Classified,GPC
Statement 18/06/2016 - 18/07/2016,E&T,DVLA VEHICLE TAX,07/07/2016,167.50,Road Licences - General,Government Services-Not Elsewhere Classified,GPC
Statement 18/06/2016 - 18/07/2016,E&T,DVLA VEHICLE TAX,07/07/2016,167.50,Road Licences - General,Government Services-Not Elsewhere Classified,GPC
Statement 18/06/2016 - 18/07/2016,E&T,DVLA VEHICLE TAX,07/07/2016,167.50,Road Licences - General,Government Services-Not Elsewhere Classified,GPC
Statement 18/06/2016 - 18/07/2016,E&T,DVLA VEHICLE TAX,11/07/2016,167.50,Road Licences - General,Government Services-Not Elsewhere Classified,GPC
Statement 18/06/2016 - 18/07/2016,E&T,DVLA VEHICLE TAX,11/07/2016,167.50,Road Licences - General,Government Services-Not Elsewhere Classified,GPC
Statement 18/06/2016 - 18/07/2016,E&T,DVLA VEHICLE TAX,11/07/2016,167.50,Road Licences - General,Government Services-Not Elsewhere Classified,GPC
Statement 18/06/2016 - 18/07/2016,E&T,DVLA VEHICLE TAX,11/07/2016,167.50,Road Licences - General,Government Services-Not Elsewhere Classified,GPC
Statement 18/06/2016 - 18/07/2016,E&T,DVLA VEHICLE TAX,11/07/2016,167.50,Road Licences - General,Government Services-Not Elsewhere Classified,GPC
Statement 18/06/2016 - 18/07/2016,E&T,DVLA VEHICLE TAX,11/07/2016,167.50,Road Licences - General,Government Services-Not Elsewhere Classified,GPC
Statement 18/06/2016 - 18/07/2016,E&T,DVLA VEHICLE TAX,11/07/2016,167.50,Road Licences - General,Government Services-Not Elsewhere Classified,GPC
Statement 18/06/2016 - 18/07/2016,E&T,DVLA VEHICLE TAX,11/07/2016,167.50,Road Licences - General,Government Services-Not Elsewhere Classified,GPC
Statement 18/06/2016 - 18/07/2016,E&T,EAST MIDLANDS TRAI,01/07/2016,14.80,Casual/Essential - General,Passenger Railways,GPC
Statement 18/06/2016 - 18/07/2016,E&T,EASTMIDLANDSTRAINS,22/06/2016,104.50,Casual/Essential - General,Passenger Railways,GPC
Statement 18/06/2016 - 18/07/2016,E&T,EASTMIDLANDSTRAINS,20/06/2016,244.70,Public Transport -  Staff - General,Passenger Railways,GPC
Statement 18/06/2016 - 18/07/2016,E&T,EASTMIDLANDSTRAINS,20/06/2016,76.40,Public Transport -  Staff - General,Passenger Railways,GPC
Statement 18/06/2016 - 18/07/2016,E&T,EASTMIDLANDSTRAINS,23/06/2016,22.80,Public Transport -  Staff - General,Passenger Railways,GPC
Statement 18/06/2016 - 18/07/2016,E&T,EASTMIDLANDSTRAINS,28/06/2016,11.60,Public Transport -  Staff - General,Passenger Railways,GPC
Statement 18/06/2016 - 18/07/2016,E&T,EASTMIDLANDSTRAINS,07/07/2016,25.00,Public Transport -  Staff - General,Passenger Railways,GPC
Statement 18/06/2016 - 18/07/2016,E&T,HALFORDS ON LINE,05/07/2016,24.14,Operational Equipment - General,Bicycle Shops-Sales and Service,GPC
Statement 18/06/2016 - 18/07/2016,E&T,LCC CATERING SERVICES,22/06/2016,5.60,Other Expenditure - General,Government Services-Not Elsewhere Classified,GPC
Statement 18/06/2016 - 18/07/2016,E&T,LCC CATERING SERVICES,22/06/2016,3.49,Other Expenditure - General,Government Services-Not Elsewhere Classified,GPC
Statement 18/06/2016 - 18/07/2016,E&T,LCC CATERING SERVICES,30/06/2016,4.50,Other Expenditure - General,Government Services-Not Elsewhere Classified,GPC
Statement 18/06/2016 - 18/07/2016,E&T,PARRS,05/07/2016,767.00,Operational Equipment - General,Hardware Stores,GPC
Statement 18/06/2016 - 18/07/2016,E&T,RIGHT CONNECTIONS (UK) L,13/07/2016,53.40,Petrol/Oil/Tyres/Spares - General,Motor Vehicle Supplies and New Parts,GPC
Statement 18/06/2016 - 18/07/2016,E&T,UPT - EMT NOTTINGHAM RAI,23/06/2016,7.00,Schools Agency staff - Teaching Staff,Professional Services-Not Elsewhere Classified,GPC
Statement 18/06/2016 - 18/07/2016,E&T,YMLP.COM,27/06/2016,94.60,Materials - General,Computer and Data Processing Services,GPC
Statement 18/06/2016 - 18/07/2016,Leicestershire Highways,Amazon UK Marketplace,29/06/2016,12.03,Books - General,Book Stores,GPC
Statement 18/06/2016 - 18/07/2016,Leicestershire Highways,Amazon UK Marketplace,07/07/2016,40.60,Books - General,Book Stores,GPC
Statement 18/06/2016 - 18/07/2016,Leicestershire Highways,Amazon UK Marketplace,27/06/2016,41.10,Materials - General,Miscellaneous and Specialty Retail Stores,GPC
Statement 18/06/2016 - 18/07/2016,Leicestershire Highways,Amazon UK Marketplace,29/06/2016,8.08,Materials - General,Miscellaneous and Specialty Retail Stores,GPC
Statement 18/06/2016 - 18/07/2016,Leicestershire Highways,Amazon UK Marketplace,07/07/2016,33.95,Materials - General,Miscellaneous and Specialty Retail Stores,GPC
Statement 18/06/2016 - 18/07/2016,Leicestershire Highways,Amazon UK Retail,29/06/2016,19.93,Other Expenditure - General,Direct Marketers - Other,GPC
Statement 18/06/2016 - 18/07/2016,Leicestershire Highways,Amazon UK Retail,30/06/2016,19.63,Other Expenditure - General,Direct Marketers - Other,GPC
Statement 18/06/2016 - 18/07/2016,Leicestershire Highways,Amazon UK Retail,30/06/2016,26.92,Other Expenditure - General,Direct Marketers - Other,GPC
Statement 18/06/2016 - 18/07/2016,Leicestershire Highways,Amazon UK Retail,07/07/2016,128.09,Other Expenditure - General,Direct Marketers - Other,GPC
Statement 18/06/2016 - 18/07/2016,Leicestershire Highways,Amazon UK Retail,08/07/2016,24.30,Other Expenditure - General,Direct Marketers - Other,GPC
Statement 18/06/2016 - 18/07/2016,Leicestershire Highways,AMAZON UK RETAIL AMAZON.C,29/06/2016,11.60,Materials - General,Miscellaneous and Specialty Retail Stores,GPC
Statement 18/06/2016 - 18/07/2016,Leicestershire Highways,DVLA VEHICLE TAX,23/06/2016,232.50,Road Licences - General,Government Services-Not Elsewhere Classified,GPC
Statement 18/06/2016 - 18/07/2016,Leicestershire Highways,DVLA VEHICLE TAX,23/06/2016,167.50,Road Licences - General,Government Services-Not Elsewhere Classified,GPC
Statement 18/06/2016 - 18/07/2016,Leicestershire Highways,DVLA VEHICLE TAX,23/06/2016,202.50,Road Licences - General,Government Services-Not Elsewhere Classified,GPC
Statement 18/06/2016 - 18/07/2016,Leicestershire Highways,DVLA VEHICLE TAX,23/06/2016,232.50,Road Licences - General,Government Services-Not Elsewhere Classified,GPC
Statement 18/06/2016 - 18/07/2016,Leicestershire Highways,DVLA VEHICLE TAX,23/06/2016,232.50,Road Licences - General,Government Services-Not Elsewhere Classified,GPC
Statement 18/06/2016 - 18/07/2016,Leicestershire Highways,DVLA VEHICLE TAX,23/06/2016,167.50,Road Licences - General,Government Services-Not Elsewhere Classified,GPC
Statement 18/06/2016 - 18/07/2016,Leicestershire Highways,DVLA VEHICLE TAX,23/06/2016,232.50,Road Licences - General,Government Services-Not Elsewhere Classified,GPC
Statement 18/06/2016 - 18/07/2016,Leicestershire Highways,DVLA VEHICLE TAX,23/06/2016,652.50,Road Licences - General,Government Services-Not Elsewhere Classified,GPC
Statement 18/06/2016 - 18/07/2016,Leicestershire Highways,DVLA VEHICLE TAX,23/06/2016,232.50,Road Licences - General,Government Services-Not Elsewhere Classified,GPC
Statement 18/06/2016 - 18/07/2016,Leicestershire Highways,DVLA VEHICLE TAX,07/07/2016,232.50,Road Licences - General,Government Services-Not Elsewhere Classified,GPC
Statement 18/06/2016 - 18/07/2016,Leicestershire Highways,DVLA VEHICLE TAX,07/07/2016,232.50,Road Licences - General,Government Services-Not Elsewhere Classified,GPC
Statement 18/06/2016 - 18/07/2016,Leicestershire Highways,DVLA VEHICLE TAX,11/07/2016,167.50,Road Licences - General,Government Services-Not Elsewhere Classified,GPC
Statement 18/06/2016 - 18/07/2016,Leicestershire Highways,DVLA VEHICLE TAX,11/07/2016,232.50,Road Licences - General,Government Services-Not Elsewhere Classified,GPC
Statement 18/06/2016 - 18/07/2016,Leicestershire Highways,DVLA VEHICLE TAX,11/07/2016,232.50,Road Licences - General,Government Services-Not Elsewhere Classified,GPC
Statement 18/06/2016 - 18/07/2016,Leicestershire Highways,DVLA VEHICLE TAX,13/07/2016,232.50,Road Licences - General,Government Services-Not Elsewhere Classified,GPC
Statement 18/06/2016 - 18/07/2016,Leicestershire Highways,MITCHELL STORAGE&DISTR,22/06/2016,51.50,Private Contractors - General,"Courier Services-Air and Ground, and Freight Forw",GPC
Statement 18/06/2016 - 18/07/2016,Leicestershire Highways,TVLICENSING.CO.UK,07/07/2016,145.50,Schools Agency staff - Teaching Staff,"Management, Consulting and Public Relations Servic",GPC
Statement 18/06/2016 - 18/07/2016,Leicestershire Highways,WWW.IPAQREPAIR.CO.UK,06/07/2016,57.42,IT Equipment - General,"Computer Maintenance, Repair, and Services Not Els",GPC
Statement 18/06/2016 - 18/07/2016,Leicestershire Highways,WWW.IPAQREPAIR.CO.UK,08/07/2016,68.90,IT Equipment - Maintenance,"Computer Maintenance, Repair, and Services Not Els",GPC
Statement 18/06/2016 - 18/07/2016,Leicestershire Highways,WWW.OFFICEFURNITUREONL,20/06/2016,118.00,Stationery - General,"Stationery, Office, and School Supply Stores",GPC
Statement 18/06/2016 - 18/07/2016,Public Health,FACEBOOK Z7E6K9NW32,30/06/2016,34.96,Advertising - General,Advertising Services,GPC
Statement 18/06/2016 - 18/07/2016,Public Health,IMAGO,08/07/2016,3.10,Contract Catering - General,Business Services-Not Elsewhere Classified,GPC
Statement 18/06/2016 - 18/07/2016,Public Health,INTU VICTORIA CENTRE,13/07/2016,4.50,Subsistence - General,Automobile Parking Lots and Garages,GPC
Statement 18/06/2016 - 18/07/2016,Public Health,LOUGHBOROUGH SST,11/07/2016,5.70,Public Transport -  Staff - General,Passenger Railways,GPC
Statement 18/06/2016 - 18/07/2016,Public Health,MAKRO SELF SERVICE,21/06/2016,44.97,Provisions - General,Wholesale Clubs,GPC
Statement 18/06/2016 - 18/07/2016,Public Health,NCP LIMITED,27/06/2016,12.00,Subsistence - General,Automobile Parking Lots and Garages,GPC
Statement 18/06/2016 - 18/07/2016,Public Health,OLD SWAN AND MINSTER MILL,06/07/2016,444.00,Conference - General,"Lodging-Hotels, Motels, Resorts",GPC
Statement 18/06/2016 - 18/07/2016,Public Health,PARKING LEIC CC,12/07/2016,3.00,Subsistence - General,Government Services-Not Elsewhere Classified,GPC
Statement 18/06/2016 - 18/07/2016,Public Health,SAINSBURYS PETROL,01/07/2016,27.69,Contract Hire - General,Service Stations (with or without Ancillary Servic,GPC
Statement 18/06/2016 - 18/07/2016,Public Health,SAINSBURY'S S/MKT,29/06/2016,35.00,Provisions - General,"Grocery Stores, Supermarkets",GPC
Statement 18/06/2016 - 18/07/2016,Public Health,TRAINLINE,27/06/2016,18.92,Public Transport -  Staff - General,Passenger Railways,GPC
Statement 18/06/2016 - 18/07/2016,Public Health,VODAFONE PAYG MBB TOPU,21/06/2016,25.00,Advertising - General,Telecommunication Service Including Local and Long,GPC
"**Amounts stated are net of VAT, except where VAT has not been recovered.",,,,,,,
